Cogmind - Beta 15 @@@ ROGUE MODE // 2025.07.10 @ 19:27:26 // Winter2019/RPGLIKE Player: Fellun Result: Destroyed by ND-MMZ(E) with Overtuned Coil Gun Performance ------------- Evolutions (8) 4000 Regions Visited (24) 4800 Robots Destroyed (1032) 5160 Value Destroyed (66574) 66574 Prototype IDs (118) 2360 Alien Tech Used (3) 600 Bonus (44914) 44914 TOTAL SCORE: 128408 Bonus ------- High Alert Combat Kills 42205 Follower Combat Kills 1910 Network Hubs Disabled 400 Registered with UFD 300 Met Optimus in HQ 500 Met Data Miner 300 Built Enhanced Grunts 300 A7 Reached Mainframe 300 Met R17 at Cetus 500 Used Core Reset Matrix 3000 Hacked Protovariant 500 Met R17 at Research 2000 Scanned by Researcher 500 Met Optimus at Protoforge 1000 Friendly Fire -8801 Cogmind --------- Core Integrity 0/1550 Matter 320/350 Energy 1789/1790 System Corruption 0% Temperature Cool (37) Movement Flying (18) Location -2/Protoforge Parts ------- > --- POWER (3) -------- Hybrid Graviton Reactor Concept Zero-point Core Concept Zero-point Core > --- PROPULSION (6) --- Experimental Biomechanical Wings Experimental Biomechanical Wings Experimental Surge Thruster Experimental Surge Thruster Concept Fieldthrust Drive > --- UTILITY (10) ----- Concept Dimensional Manipulator Experimental Active Sensor Suite Advanced Target Analyzer Advanced Target Analyzer Experimental Core Analyzer Advanced Weapon Cycler (fused) Concept RG22 Armor Experimental System Purifier > --- WEAPON (6) ------- Concept Variable Chargecaster Concept XC Strikerail Concept XC Strikerail Concept XC Strikerail > --- INVENTORY (6) ---- Concept NT7 Matterbank (565) Concept Navigation Harness Concept Disintegration Ray (39) Concept XC Strikerail Z-bomb Delivery System Peak State ------------ > --- POWER ------------ Hybrid Graviton Reactor Concept Zero-point Core Concept Zero-point Core > --- PROPULSION ------- Experimental Biomechanical Wings Experimental Biomechanical Wings Experimental Surge Thruster Experimental Surge Thruster Experimental Surge Thruster Concept Fieldthrust Drive > --- UTILITY ---------- Concept NT7 Matterbank Concept Dimensional Manipulator Experimental Active Sensor Suite Advanced Target Analyzer Advanced Weapon Cycler Advanced Transmission Jammer Concept Cloak Mesh Concept RG22 Armor Experimental System Purifier > --- WEAPON ----------- Concept Variable Chargecaster Concept Variable Chargecaster Concept Variable Chargecaster Concept XC Strikerail Concept XC Strikerail Concept XC Strikerail > --- INVENTORY -------- Advanced Heat Sink High-powered Transdimensional Reconstructor Concept Navigation Harness Concept Disintegration Ray Z-bomb Delivery System [Rating: 285] Favorites ----------- Power Light Angular Momentum Engine Engine Light Angular Momentum Engine Power Core Concept Zero-point Core Reactor Hybrid Graviton Reactor Propulsion Improved VTOL Module Wheel Wheel Hover Unit Hover Unit Flight Unit Improved VTOL Module Utility Advanced Weapon Cycler Device Advanced Weapon Cycler Storage Concept NT7 Matterbank Processor Advanced Target Analyzer Hackware Advanced Hacking Suite Protection Layered Light Armor Plating Weapon Concept XC Strikerail Energy Gun Concept Variable Chargecaster Ballistic Gun Concept XC Strikerail Ballistic Cannon Graviton Cannon Launcher Concept Tiamat Rocket Array Special Weapon Plasma Flamer Build | -11 -10 -9 -8 -8 -8 -8 -6 -6 -6 -6 -5 -5 -5 -5 -5 -5 -4 -4 -4 -3 -3 -2 -2 -2 ------- Run | Yrd Mat Mat Mat Sto Rec Scr Fac Low Low Dat Pro Fac Ext Cet Arc Hub Fac Upp Upp Res Qua Res Tes Frg Slots Evolved 21 | 5 . 2 1 2 . 2 3 . . . . 2 . . . . 2 . . 1 . . . 1 Power 2 | 1 . . . . . . . . . . . 1 . . . . . . . . . . . . Propulsion 5 | 1 . 1 . 1 . . 1 . . . . . . . . . 1 . . . . . . . Utility 9 | 1 . 1 1 1 . 1 2 . . . . 1 . . . . . . . 1 . . . . Weapon 5 | 2 . . . . . 1 . . . . . . . . . . 1 . . . . . . 1 Parts Attached 183 | 7 4 10 3 15 1 4 22 . 2 . 2 12 2 1 . 1 8 . . 7 4 5 11 62 Power 17 | 2 . 1 . 1 . . 3 . . . . 2 . . . . . . . 3 . . . 5 Engine 7 | 2 . 1 . 1 . . 2 . . . . 1 . . . . . . . . . . . . Core 3 | . . . . . . . . . . . . 1 . . . . . . . . . . . 2 Reactor 7 | . . . . . . . 1 . . . . . . . . . . . . 3 . . . 3 Propulsion 31 | 2 . 5 1 3 . . 2 . . . . 1 . . . . 3 . . 2 1 1 . 10 Treads . | . . . . . . . . . . . . . . . . . . . . . . . . . Leg . | . . . . . . . . . . . . . . . . . . . . . . . . . Wheel 2 | 2 . . . . . . . . . . . . . . . . . . . . . . . . Hover 2 | . . 2 . . . . . . . . . . . . . . . . . . . . . . Flight 27 | . . 3 1 3 . . 2 . . . . 1 . . . . 3 . . 2 1 1 . 10 Utility 70 | . 4 1 1 2 1 2 10 . 1 . 1 8 2 . . 1 3 . . 1 2 1 4 25 Device 40 | . . 1 . 1 1 1 4 . . . 1 6 . . . . 3 . . 1 . 1 4 16 Storage 1 | . . . . . . . . . . . . . . . . . . . . . . . . 1 Processor 16 | . 1 . . 1 . . 4 . . . . . 1 . . . . . . . 2 . . 7 Hackware 3 | . . . 1 . . . . . 1 . . . . . . 1 . . . . . . . . Protection 10 | . 3 . . . . 1 2 . . . . 2 1 . . . . . . . . . . 1 Artifact . | . . . . . . . . . . . . . . . . . . . . . . . . . Weapon 65 | 3 . 3 1 9 . 2 7 . 1 . 1 1 . 1 . . 2 . . 1 1 3 7 22 Energy Gun 28 | 2 . . . 6 . 1 5 . . . 1 . . . . . . . . 1 . 2 3 7 Energy Cannon . | . . . . . . . . . . . . . . . . . . . . . . . . . Ballistic Gun 27 | 1 . 3 1 2 . . 2 . . . . 1 . 1 . . 2 . . . 1 1 2 10 Ballistic Cannon 3 | . . . . . . . . . . . . . . . . . . . . . . . 1 2 Launcher 5 | . . . . 1 . . . . . . . . . . . . . . . . . . 1 3 Special Weapon 2 | . . . . . . 1 . . 1 . . . . . . . . . . . . . . . Impact Weapon . | . . . . . . . . . . . . . . . . . . . . . . . . . Slashing Weapon . | . . . . . . . . . . . . . . . . . . . . . . . . . Piercing Weapon . | . . . . . . . . . . . . . . . . . . . . . . . . . Special Melee Weapon . | . . . . . . . . . . . . . . . . . . . . . . . . . Unidentified Prototypes 51 | . . 1 1 8 . 1 3 . . . . . . 1 . . 2 . . . 1 2 5 26 Parts Lost 3 | . . . . . . . . . . . . 1 . . . . . . . . . . . 2 Power . | . . . . . . . . . . . . . . . . . . . . . . . . . Propulsion 1 | . . . . . . . . . . . . . . . . . . . . . . . . 1 Utility 2 | . . . . . . . . . . . . 1 . . . . . . . . . . . 1 Weapon . | . . . . . . . . . . . . . . . . . . . . . . . . . Highest Loss Streak 1 | . . . . . . . . . . . . 1 . . . . . . . . . . . 1 To Critical Strikes . | . . . . . . . . . . . . . . . . . . . . . . . . . Average Backups 3 | . . . 1 2 2 1 2 2 3 3 3 3 2 2 3 3 3 3 3 3 3 3 3 4 Power . | . . . . . . . . . . . . . . . . . . . . . . . . . Propulsion . | . . . 1 . 1 1 2 1 1 1 . . . . . . . . . . . . . . Utility 1 | . . . . . . . . . 1 1 1 2 2 2 3 3 3 3 3 3 1 1 . 1 Weapon 1 | . . . . 1 1 . . . 1 1 1 . . . . . . . . . . . 1 2 Tool/Special . | . . . . . . . . . . . . . . . . . . . . . . . . . Unused Backups 7 | . . . . . . . . . . . . 2 . . . 1 . . . . 1 . 1 2 Power . | . . . . . . . . . . . . . . . . . . . . . . . . . Propulsion . | . . . . . . . . . . . . . . . . . . . . . . . . . Utility 6 | . . . . . . . . . . . . 2 . . . 1 . . . . 1 . 1 1 Weapon . | . . . . . . . . . . . . . . . . . . . . . . . . . Tool/Special 1 | . . . . . . . . . . . . . . . . . . . . . . . . 1 Average Slot Usage (%) 97 | . 93 99 100 100 100 98 98 100 100 100 100 99 100 100 100 99 97 95 95 95 99 99 99 96 Engine 6 | . 22 20 16 14 14 13 11 10 10 10 10 9 9 9 9 9 8 8 8 5 4 4 4 1 Core 3 | . . . . . . . . . . . . 2 4 4 4 4 4 4 4 4 4 4 4 6 Reactor 2 | . . . . . . . . . . . . . . . . . . . . 2 4 4 4 4 Flight 23 | . . 21 25 27 28 26 24 26 26 26 26 24 23 23 23 23 21 21 21 20 24 25 25 24 Device 18 | . . . 8 10 14 18 11 15 15 15 15 21 23 23 23 19 17 17 17 18 20 19 19 20 Storage 1 | . . . . . . . . . . . . . . . . . . . . . . . . 3 Processor 11 | . 2 10 8 7 7 6 16 15 15 15 15 14 14 14 14 14 13 13 13 12 14 16 16 9 Hackware 1 | . . . 4 7 7 6 5 5 5 5 5 1 . . . 3 4 4 4 4 1 . . . Protection 4 | . 13 10 8 7 7 6 5 5 5 5 5 3 4 4 4 3 3 4 4 4 4 4 4 3 Energy Gun 12 | . 22 20 16 14 14 12 14 15 12 15 15 14 14 14 14 14 13 13 13 12 8 8 9 10 Ballistic Gun 7 | . 11 10 8 7 7 5 5 5 5 5 5 4 4 4 4 4 6 8 8 8 11 12 10 9 Peak Build Rating 285 | 7 10 23 27 44 45 57 81 80 81 81 85 103 104 105 105 108 135 132 132 147 150 157 165 285 Average Rating 153 | 5 8 16 25 38 44 49 69 79 80 81 83 95 102 104 105 107 123 132 132 137 147 150 157 249 On Entrance 85 | . 7 10 23 27 44 45 57 79 80 81 81 85 101 103 105 105 108 132 132 132 138 150 156 158 Naked Turns . | . . . . . . . . . . . . . . . . . . . . . . . . . Heaviest Build 106 | 11 16 20 21 26 26 38 42 37 37 37 41 50 50 51 51 51 51 51 51 66 61 64 68 106 Greatest Support 96 | 26 26 31 26 31 34 39 50 50 50 50 50 53 50 55 55 55 67 67 67 69 70 70 70 96 Greatest Overweight (x) 1 | . . 1 . . . 1 . . . . . . . . . . 1 . . . . . . 1 Average Overweight (x) . | . . . . . . . . . . . . . . . . . . . . . . . . . Largest Inventory Capacity 6 | . . 1 2 2 2 3 3 3 3 3 3 3 3 3 3 3 3 3 3 3 3 3 5 6 Average Capacity 3 | . . . 1 2 2 2 3 3 3 3 3 3 3 3 3 3 3 3 3 3 3 3 4 5 Most Carried 6 | . . 1 2 2 2 3 3 3 3 3 3 3 2 3 3 3 3 3 3 3 3 3 5 6 Average Carried 3 | . . . 1 1 2 2 2 2 3 3 2 2 2 2 2 2 3 3 3 3 2 3 3 5 Final Capacity 6 | . . 1 2 2 2 3 3 3 3 3 3 3 3 3 3 3 3 3 3 3 3 3 5 6 Final Carried 6 | . . 1 2 2 2 3 2 3 3 3 3 2 2 3 3 3 3 3 3 3 3 3 5 6 Class Distribution -------------------- 34% | Scavenger-Scout 27% | Hacker-Scout 10% | Scavenger-Executioner 8% | Scout 7% | Hacker-Sprinter 5% | Sprinter Dominant Class ---------------- Gunner | -10/Materials Sprinter | -9/Materials Sprinter | -8/Materials Sprinter | -8/Storage Hacker-Sprinter | -8/Recycling Hacker-Sprinter | -8/Scraptown Hacker-Scout | -6/Factory Hacker-Scout | -6/Lower Caves Hacker-Scout | -6/Lower Caves Hacker-Scout | -6/Data Miner Hacker-Scout | -5/Proximity Caves Scout | -5/Factory Scout | -5/Extension Scout | -5/Cetus Commander-Scout | -5/Archives Hacker-Scout | -5/Hub_04(d) Hacker-Scout | -4/Factory Hacker-Scout | -4/Upper Caves Hacker-Scout | -4/Upper Caves Hacker-Scout | -3/Research Scavenger-Scout | -3/Quarantine Scavenger-Scout | -2/Research Scavenger-Scout | -2/Testing Scavenger-Scout | -2/Protoforge Resources | -11 -10 -9 -8 -8 -8 -8 -6 -6 -6 -6 -5 -5 -5 -5 -5 -5 -4 -4 -4 -3 -3 -2 -2 -2 ----------- Run | Yrd Mat Mat Mat Sto Rec Scr Fac Low Low Dat Pro Fac Ext Cet Arc Hub Fac Upp Upp Res Qua Res Tes Frg Matter Collected 30417 | 259 84 141 227 319 125 342 737 130 102 . 199 503 400 61 89 158 888 162 315 533 403 431 995 22814 Remotely . | . . . . . . . . . . . . . . . . . . . . . . . . . Salvage Created 49418 | . 280 668 558 1028 294 1289 1429 482 509 . 545 1285 2509 161 260 679 2690 589 1191 1113 738 755 1721 28645 Parts 2503 | . 12 48 41 66 19 66 87 15 19 . 24 67 114 6 10 26 140 23 46 53 53 56 106 1406 Haulers Intercepted 3 | . . . 1 1 . . . . . . . . . . . . . . . . . . . 1 Recyclers Shooed 4 | . . . . . . . . . . . . . 1 . . . 3 . . . . . . . Parts Field Recycled . | . . . . . . . . . . . . . . . . . . . . . . . . . Retrieved Matter . | . . . . . . . . . . . . . . . . . . . . . . . . . Parts Self-Destructed 95 | . . . . . . . . 14 14 . 16 . . . . . . 19 32 . . . . . Prevented 30 | . . . . . . . . 3 4 . 8 . . . . . . 3 12 . . . . . Kills | -11 -10 -9 -8 -8 -8 -8 -6 -6 -6 -6 -5 -5 -5 -5 -5 -5 -4 -4 -4 -3 -3 -2 -2 -2 ------- Run | Yrd Mat Mat Mat Sto Rec Scr Fac Low Low Dat Pro Fac Ext Cet Arc Hub Fac Upp Upp Res Qua Res Tes Frg Combat Hostiles Destroyed 955 | . 7 13 16 20 6 25 31 12 13 . 15 35 49 2 1 6 45 11 20 13 13 9 18 575 Guns 696 | . 7 13 16 20 6 20 28 12 11 . 13 29 47 1 1 5 43 10 20 12 13 9 18 342 Cannons 11 | . . . . . . 3 . . 1 . . . . . . . . . . . . . . 7 AOE 228 | . . . . . . . 1 . 1 . . 2 1 . . . 2 1 . . . . . 220 Classes Destroyed 40 | . 3 3 4 1 . 5 3 . . . . . 1 . . 1 2 . 1 1 . 1 1 13 Worker 14 | . . 1 . . . . 3 . . . . 1 1 . . 2 . . . 1 . 1 . 4 Builder 8 | . . 1 . . . . . . . . . . . . . 1 2 . . . . 2 . 2 Tunneler 1 | . . . . . . . . . . . . . . . . . . . . 1 . . . . Hauler 3 | . . . 1 1 . . . . . . . . . . . . . . . . . . . 1 Recycler 1 | . . . . . . . . . . . . . . . . . 1 . . . . . . . Carrier 13 | . . . . . . . . . . . . . . . . . . . . . . . . 13 Mechanic 26 | . . . . . . . . . . . . . . . . . . . . . . . . 26 Operator 17 | . . . 1 1 . . 2 . . . . . 1 . 3 1 2 . . 1 3 . 1 1 Drone 23 | . . . . . . . . . . . . . . . . . . . . . . 1 . 22 Watcher 44 | . 2 2 1 1 . . 5 . . . . 2 1 2 . 2 9 . . 6 2 2 1 6 Swarmer 123 | . 2 2 6 3 . . 6 2 5 . 2 9 8 . . . 9 3 10 . 4 . . 52 Cutter 5 | . . . . . . . 3 . . . . . . . . 2 . . . . . . . . Saboteur 16 | . . . . . . . . . . . . . . . . . . . . . . . . 16 Grunt 233 | . 5 8 4 5 1 . 10 3 6 . 7 16 15 . . . 15 5 7 7 1 . 5 113 Brawler 45 | . . . . 1 . . . 3 1 . 1 2 . . . . . 1 . 1 . . . 35 Duelist 48 | . . . 1 . 1 . . 2 . . 2 . 5 . . . . 1 . . . . 1 35 Protector 26 | . . . . . . . . . . . . . . . . 1 . . . . . . . 25 Researcher 4 | . . . . . . . . . . . . . . . . . . . . . . . . 4 Sentry 78 | . . 3 3 10 4 . 6 2 . . 3 3 6 . 1 2 9 1 2 3 3 4 . 13 Demolisher 2 | . . . . . . . . . . . . . . . . . 2 . . . . . . . Specialist 8 | . . . . . . . . . . . . . . . . . . . . . . . . 8 Hunter 61 | . . . 2 1 . . 3 . 1 . . . . . . . 2 . . . 2 2 3 45 Programmer 73 | . . . . . . . 2 . . . . 5 . . . . 7 . . . 3 1 9 46 Heavy 3 | . . . . . . . 1 . . . . . . . . . 1 . . . . 1 . . Behemoth 6 | . . . . . . . . . . . . . 2 . . . . . 1 2 . . . 1 Cetus Guard 2 | . . . . . . . . . . . . . . 2 . . . . . . . . . . Lightning 1 | . . . . . . . . . . . . . . . . 1 . . . . . . . . Hotshot 18 | . . . . . . . . . . . . . . . . . . . . . . . . 18 Decapitator 16 | . . . . . . . . . . . . . . . . . . . . . . . . 16 Immortal 8 | . . . . . . . . . . . . . . . . . . . . . . . . 8 Striker 59 | . . . . . . . . . . . . . . . . . . . . . . . . 59 Executioner 53 | . . . . . . . . . . . . . . . . . . . . . . . . 53 Alpha 7 3 | . . . . . . . . . . . . . . . . . . . . . . . . 3 Fortress 1 | . . . . . . . . . . . . . . . . . . . . . . . 1 . V-Series 6 | . . . . . . . . . . . . . . . . . . . . . . . . 6 Bolteater 1 | . . . . . . . . . . . . . . . . . . . . . . . . 1 Federalist 4 | . . . . . . 4 . . . . . . . . . . . . . . . . . . Explorer 5 | . . . . . . 1 . . . . . . 1 . . . . . . . . . . 3 Ranger 4 | . . . . . . 4 . . . . . . . . . . . . . . . . . . Guru 1 | . . . . . . 1 . . . . . . . . . . . . . . . . . . Scrapper 13 | . . . . . . 13 . . . . . . . . . . . . . . . . . . Elite 2 | . . . . . . . . . . . . . . . . . . . . . . . . 2 Scrapoid 1 | . . . . . . . . . . . . . . . . . . . . . . . . 1 Samaritan 1 | . . . . . . . . . . . . . . . . . . . 1 . . . . . Tinkerer 1 | . . . . . . . . . . . . . . . . . . . . . . . . 1 Thug 7 | . . . . . . 2 . . . . . . 5 . . . . . . . . . . . Savage 3 | . . . . . . . . . . . . . 3 . . . . . . . . . . . Butcher 2 | . . . . . . . . . . . . . 2 . . . . . . . . . . . Guerrilla 3 | . . . . . . . . . . . . . 3 . . . . . . . . . . . Best Kill Streak 45 | . 3 6 7 14 3 12 4 6 6 . 4 11 8 2 3 5 7 8 7 4 6 4 4 45 Combat Bots Only 43 | . 2 6 7 9 3 12 4 6 6 . 4 11 8 1 1 2 6 8 7 4 6 4 3 43 Max Kills in Single Turn 12 | . 1 2 2 2 2 1 3 2 2 . 1 2 3 1 1 2 3 2 2 2 1 2 2 12 Gunslinging 2 | . . 1 . 1 . . 1 1 . . . 1 1 . . . 1 1 . . . . . 2 Exploded 8 | . . . . . . . 1 . 1 . . 2 1 . . . 2 1 . . . . . 8 Melee . | . . . . . . . . . . . . . . . . . . . . . . . . . Uniques/NPCs Destroyed 1 | . . . . . . . . . . . . . . 1 . . . . . . . . . . A7 (-5/Cetus) Combat | -11 -10 -9 -8 -8 -8 -8 -6 -6 -6 -6 -5 -5 -5 -5 -5 -5 -4 -4 -4 -3 -3 -2 -2 -2 -------- Run | Yrd Mat Mat Mat Sto Rec Scr Fac Low Low Dat Pro Fac Ext Cet Arc Hub Fac Upp Upp Res Qua Res Tes Frg Hostile Shots Fired 2450 | . 18 41 69 61 2 65 211 20 45 . 57 104 108 34 5 54 115 23 48 82 56 42 39 1151 Missed 990 | . 7 13 25 24 1 24 110 9 16 . 30 38 51 17 2 22 55 9 25 38 19 16 19 420 Hits 1460 | . 11 28 44 37 1 41 101 11 29 . 27 66 57 17 3 32 60 14 23 44 37 26 20 731 Melee 24 | . . . . . . . 1 . . . 1 2 . . . 4 1 . . . . . 1 14 Projectile 1436 | . 11 28 44 37 1 41 100 11 29 . 26 64 57 17 3 28 59 14 23 44 37 26 19 717 AOE 8 | . . . . . . . 2 . . . . 2 . . . 1 1 . . . . . . 2 Critical Strikes 89 | . . . 1 1 . 3 3 . 1 . 2 2 1 2 . 4 4 . . 2 2 4 4 53 Part Disruptions 4 | . . . . . . . . . . . . . . . . . 1 . . . . . . 3 Damage Taken 34395 | . 111 307 583 516 17 609 1206 184 545 . 535 1485 1179 399 149 1037 1193 261 504 1069 619 502 475 20910 Core 25895 | . 74 228 433 347 17 464 860 135 397 . 388 1115 908 290 118 735 851 178 374 827 487 362 367 15940 Absorbed by Shields 284 | . . . . . . . . . . . . . 61 147 . . . . . . . 30 . 46 Redirected to Core 21601 | . 56 174 297 320 . 374 720 85 365 . 388 970 724 202 118 618 778 178 308 689 434 362 324 13117 Redirected to Shielding 11 | . 11 . . . . . . . . . . . . . . . . . . . . . . . Ignored by Resistances 2399 | . . . 28 37 1 51 109 11 34 . 36 70 90 41 11 27 85 22 39 74 32 43 18 1540 Regen/Repaired (Parts) 2000 | . . . . . . . . . . . . . . . . . 198 . . . . 4 . 1798 Core Remaining (%) 85 | 100 100 74 . . . 75 . . . . 98 . . . . 52 . . 93 . 90 . . . Volleys Fired 1688 | . 33 45 40 41 17 75 106 18 28 . 33 78 92 24 11 36 102 20 33 47 31 24 89 665 Largest 6 | . 3 3 3 3 3 3 4 4 4 . 4 4 4 4 4 4 5 5 5 5 5 5 5 6 Hottest 666 | . 110 113 118 150 150 169 244 226 251 . 245 248 248 250 250 250 285 285 285 285 285 236 276 666 Shots Fired 7046 | . 99 116 120 122 51 216 333 70 98 . 131 291 352 82 38 125 443 100 161 221 143 120 344 3270 Gun 6850 | . 99 116 120 122 51 208 333 70 87 . 131 291 352 82 38 125 443 100 161 221 143 120 341 3096 Cannon 56 | . . . . . . . . . . . . . . . . . . . . . . . . 56 Launcher 121 | . . . . . . . . . . . . . . . . . . . . . . . 3 118 Special 19 | . . . . . . 8 . . 11 . . . . . . . . . . . . . . . Kinetic 2895 | . 33 26 40 40 17 66 105 18 27 . 33 78 90 24 11 36 152 40 66 94 74 72 105 1648 Thermal 3329 | . 33 45 40 79 34 142 184 34 44 . 65 135 170 34 16 56 195 40 62 80 62 48 236 1495 Explosive 117 | . . . . . . . . . . . . . . . . . . . . . . . 3 114 Electromagnetic 688 | . 33 45 40 3 . . 44 18 27 . 33 78 92 24 11 33 96 20 33 47 7 . . 4 Impact 8 | . . . . . . 8 . . . . . . . . . . . . . . . . . . Entropic 9 | . . . . . . . . . . . . . . . . . . . . . . . . 9 Robot Hit Streak 124 | . 4 8 12 13 18 43 23 34 18 . 28 29 52 22 30 24 124 26 31 41 67 72 57 79 Robot Miss Streak 9 | . 4 9 5 8 . 2 4 3 2 . 2 3 2 3 1 2 2 2 2 2 1 2 2 4 Penetration Max 2 | . . . 1 . . 1 . . . . . . 1 1 1 . 1 1 2 1 1 1 1 2 Secondary Targets 159 | . . 3 3 3 . 4 5 2 1 . 6 13 11 1 . 2 6 1 4 . 2 1 . 91 Max Gunslinging Chain 2 | . . 1 1 1 . 1 1 1 1 . 1 1 1 1 . 1 1 1 1 . 1 1 . 2 Shots Hit Robots 4950 | . 32 37 79 62 16 146 205 49 63 . 114 200 286 73 35 67 344 70 117 168 115 97 260 2315 Core Hits 2697 | . 14 27 35 34 9 44 85 25 31 . 33 73 120 20 16 28 139 25 48 62 42 37 105 1645 Critical Kills 165 | . . . 1 . . . . . . . 1 . . . 1 1 7 1 2 2 3 5 7 134 Critical Parts Destroyed 202 | . . . . . . 2 4 . . . . . 3 . . 3 4 . 1 2 5 4 9 165 Critical Strikes 522 | . . 2 5 2 1 14 26 4 2 . 5 8 14 4 4 8 23 1 8 9 11 10 18 343 Burn 96 | . . 2 4 2 1 12 21 4 2 . 3 6 8 2 2 4 10 . 5 4 3 1 . . Meltdown 4 | . . . . . . . . . . . . . . . . . . . . . . . . 4 Destroy 405 | . . . 1 . . 1 4 . . . 1 . 4 2 2 4 11 1 3 4 8 9 18 332 Blast 7 | . . . . . . . . . . . . . . . . . . . . . . . . 7 Corrupt 9 | . . . . . . . 1 . . . 1 2 2 . . . 2 . . 1 . . . . Smash 1 | . . . . . . 1 . . . . . . . . . . . . . . . . . . Melee Attacks . | . . . . . . . . . . . . . . . . . . . . . . . . . Impact . | . . . . . . . . . . . . . . . . . . . . . . . . . Slashing . | . . . . . . . . . . . . . . . . . . . . . . . . . Piercing . | . . . . . . . . . . . . . . . . . . . . . . . . . Sneak Attacks . | . . . . . . . . . . . . . . . . . . . . . . . . . Combat Hostiles . | . . . . . . . . . . . . . . . . . . . . . . . . . Follow-up Attacks . | . . . . . . . . . . . . . . . . . . . . . . . . . Damage Inflicted 223465 | . 523 569 1186 1029 357 2996 4892 1051 1637 . 2496 5370 7404 2052 891 1833 9983 1991 3069 4425 2805 2342 5704 158860 Guns 143171 | . 421 569 1186 1029 357 2622 4343 1051 1298 . 2415 4768 6975 1715 891 1434 9140 1931 3069 4322 2805 2342 5704 82784 Cannons 1643 | . . . . . . . . . . . . . . . . . . . . . . . . 1643 Explosions 78176 | . 102 . . . . . 549 . 263 . 81 602 429 337 . 399 843 60 . 103 . . . 74408 Melee . | . . . . . . . . . . . . . . . . . . . . . . . . . Ramming 25 | . . . . . . . . . . . . . . . . . . . . . . . . 25 Kinetic 63515 | . 82 101 490 295 62 927 1304 204 369 . 534 1285 1756 576 300 488 3211 716 1272 1979 1229 1272 1509 43554 Thermal 71881 | . 242 215 296 710 295 1695 2542 465 692 . 1262 2282 3650 1014 342 718 4768 780 1183 1535 1333 1070 4195 40597 Explosive 74553 | . . . . . . . 308 . . . . 546 . . . . . . . . . . . 73699 Electromagnetic 12841 | . 199 253 400 24 . . 738 382 576 . 700 1257 1998 462 249 627 2004 495 614 911 243 . . 709 Impact 374 | . . . . . . 374 . . . . . . . . . . . . . . . . . . Slashing . | . . . . . . . . . . . . . . . . . . . . . . . . . Piercing . | . . . . . . . . . . . . . . . . . . . . . . . . . Entropic 276 | . . . . . . . . . . . . . . . . . . . . . . . . 276 Highest Corruption 46 | . . . . 1 1 1 6 1 1 1 1 7 . . . 7 . . . . . . 3 46 Average Corruption 9 | . . . . 1 1 1 1 1 1 1 1 2 . . . 3 . . . . . . 2 18 Corruption Purged 74 | . . . . . . . 5 . . . . 11 . . . . . . . . . . . 58 Corruption Blocked . | . . . . . . . . . . . . . . . . . . . . . . . . . Effects 267 | . . . . 4 1 4 14 2 3 . 4 8 . . . 9 . . . . . . 5 213 Message Errors 39 | . . . . . . . 2 . 1 . 1 1 . . . 2 . . . . . . 1 31 Matter Fused 47 | . . . . 1 . 1 4 . . . 2 1 . . . . . . . . . . 1 37 Heat Flow Errors 29 | . . . . . . 1 1 1 . . 1 . . . . 1 . . . . . . 1 23 Energy Discharges 27 | . . . . 1 1 1 1 . . . . 2 . . . 2 . . . . . . . 19 Parts Rejected 2 | . . . . . . . . . . . . . . . . . . . . . . . . 2 Parts Fused 2 | . . . . . . . . . . . . . . . . . . . . . . . . 2 Data Loss (minor) 23 | . . . . 1 . . 3 1 . . . 2 . . . 1 . . . . . . 1 14 Data Loss (major) 9 | . . . . . . 1 . . . . . . . . . . . . . . . . . 8 Misfires 7 | . . . . . . . . . 1 . . . . . . . . . . . . . . 6 Alerts 5 | . . . . . . . . . . . . 1 . . . . . . . . . . . 4 Misdirections 5 | . . . . . . . . . . . . . . . . . . . . . . . . 5 Weapon Failures 72 | . . . . 1 . . 3 . 1 . . 1 . . . 3 . . . . . . 1 62 Overload Shots 2 | . . . . . . . . . . . . . . . . . . . . . . . . 2 Overflow Damage 4553 | . . . . . . 104 18 . 11 . . 11 30 . . 126 296 . . 48 . . . 3909 Projectiles 180 | . . . . . . 104 . . . . . . . . . . . . . . . . . 76 Explosions 4373 | . . . . . . . 18 . 11 . . 11 30 . . 126 296 . . 48 . . . 3833 Melee . | . . . . . . . . . . . . . . . . . . . . . . . . . Knockbacks 11 | . . . . . . 1 . . . . . . . . . . . . . . . . . 10 Impact 1 | . . . . . . 1 . . . . . . . . . . . . . . . . . . Kinetic 8 | . . . . . . . . . . . . . . . . . . . . . . . . 8 Secondary 2 | . . . . . . . . . . . . . . . . . . . . . . . . 2 Self-Inflicted Damage 1200 | . . . . . . . 38 . 62 . . . 66 88 . 187 57 . . . . . . 702 Shots 26 | . . . . . . . 1 . 1 . . . 1 1 . 2 1 . . . . . . 19 Rammed 1 | . . . . . . . . . . . . . . . . . . . . . . . . 1 Targets Rammed 1 | . . . . . . . . . . . . . . . . . . . . . . . . 1 Kicked . | . . . . . . . . . . . . . . . . . . . . . . . . . Crushed . | . . . . . . . . . . . . . . . . . . . . . . . . . Highest Temperature 400 | . 219 219 90 307 . 109 228 248 134 . 214 400 282 168 161 265 320 265 238 320 17 54 225 352 Average Temperature 73 | . 81 42 21 95 . 30 58 69 48 . 64 117 105 70 66 77 85 104 96 86 8 24 54 46 Received Heat Transfer 3391 | . 48 102 180 207 . 324 204 63 135 . 171 222 271 13 21 33 124 72 81 222 9 9 27 853 Effects 12 | . . 2 . 1 . . . . . . . . 1 . . . 3 . 4 . . . . 1 Energy Bleed 3 | . . . . 1 . . . . . . . . 1 . . . . . 1 . . . . . Interference 8 | . . 2 . . . . . . . . . . . . . . 3 . 3 . . . . . Short Circuit 1 | . . . . . . . . . . . . . . . . . . . . . . . . 1 Siege Activations . | . . . . . . . . . . . . . . . . . . . . . . . . . Martial Activations . | . . . . . . . . . . . . . . . . . . . . . . . . . Shielding Activations . | . . . . . . . . . . . . . . . . . . . . . . . . . Robots Disrupted 8 | . . . . . . . 1 . 1 . 2 . 1 . 1 . 2 . . . . . . . Combat Hostiles 8 | . . . . . . . 1 . 1 . 2 . 1 . 1 . 2 . . . . . . . Robots Corrupted 11 | . . . . . . 1 . . . . 2 1 1 1 . 1 . . . 1 . . . 3 Combat Hostiles 10 | . . . . . . 1 . . . . 2 1 1 1 . 1 . . . 1 . . . 2 Parts Fried 39 | . . . 2 . . 3 3 . 1 . 1 2 6 1 2 5 4 . . . 2 1 . 6 Impact Corruptions 5 | . . . . . . 4 . . . . . . . . . . . . . . . . . 1 Robots Melted 10 | . . . . . . 1 2 . . . . 3 . . . . . . . . . . . 4 Combat Hostiles 10 | . . . . . . 1 2 . . . . 3 . . . . . . . . . . . 4 Parts Melted 124 | . . . 1 3 1 9 24 5 1 . 2 12 6 . 1 . 11 . 2 1 3 2 3 37 Heat Transferred 96703 | . 557 777 1184 1517 629 3680 6880 1405 1792 . 2676 4033 6246 1404 703 1261 7284 1160 2183 2603 2257 1665 5027 39780 Parts Sabotaged . | . . . . . . . . . . . . . . . . . . . . . . . . . Parts Stolen . | . . . . . . . . . . . . . . . . . . . . . . . . . Parts Stripped . | . . . . . . . . . . . . . . . . . . . . . . . . . Power Chain Reactions 16 | . 2 . . . . . . . 2 . 2 2 2 1 . 1 2 1 . 1 . . . . Alert | -11 -10 -9 -8 -8 -8 -8 -6 -6 -6 -6 -5 -5 -5 -5 -5 -5 -4 -4 -4 -3 -3 -2 -2 -2 ------- Run | Yrd Mat Mat Mat Sto Rec Scr Fac Low Low Dat Pro Fac Ext Cet Arc Hub Fac Upp Upp Res Qua Res Tes Frg Maximum Alert Level 5 | . . 1 1 1 1 . 4 . . . . 3 4 4 2 4 4 . . 3 . 2 3 5 Low Security (%) 19 | 100 100 70 91 37 62 . 20 . . . . 12 . . . 8 6 . . . 100 43 . 9 Level 1 10 | . . 29 8 62 37 . 2 . . . . 23 2 . . 3 8 . . 19 . 56 27 5 Level 2 19 | . . . . . . . 13 . . . . 6 47 . 100 11 53 . . . . . 53 11 Level 3 16 | . . . . . . . 44 . . . . 57 27 85 . 70 16 . . 79 . . 19 3 Level 4 5 | . . . . . . . 18 . . . . . 21 14 . 6 14 . . . . . . 4 Level 5 27 | . . . . . . . . . . . . . . . . . . . . . . . . 64 High Security . | . . . . . . . . . . . . . . . . . . . . . . . . . Max Security . | . . . . . . . . . . . . . . . . . . . . . . . . . Peak Influence 16329 | . 86 241 309 388 242 . 1390 . . . . 913 1476 1112 655 1196 1358 . . 1061 188 393 750 16329 Initial 817 | . . 32 24 126 136 . . . . . . 117 382 817 432 170 547 . . 702 154 83 220 398 Average 2481 | . 17 114 131 258 183 . 726 . . . . 572 809 980 577 828 644 . . 803 71 228 540 5143 Influence Increases 31832 | . 203 375 425 724 192 . 1838 255 320 . 385 1187 1424 425 253 1498 1980 225 465 593 427 450 1097 17091 Destroy 0b10 Robot/C 18880 | . 140 260 320 400 160 . 1020 240 260 . 300 700 1020 200 80 200 900 220 400 260 260 160 460 10920 Destroy 0b10 Robot/NC 895 | . 10 20 15 20 10 . 65 . 15 . . 15 15 10 15 35 80 5 10 45 25 30 10 445 Destroy Leader 2950 | . 14 54 74 144 . . 242 . 30 . 10 134 72 10 . 54 228 . 40 82 24 74 72 1592 Allied During Kill 673 | . . . . 5 4 . 60 . . . . . 120 139 95 172 . . . . . . 78 . Trap Triggered on 0b10 10 | . . . . . . . . . . . . . . . . . 10 . . . . . . . Successful Hack 757 | . 12 10 . 4 17 . 33 . . . . 59 22 20 . 12 120 . . 60 82 51 207 48 Disable Machine 2160 | . . 15 . 75 . . 195 . . . . 90 15 . 15 420 300 . . . 30 . 105 900 Anti-Garrison Action 300 | . . . . . . . 150 . . . . . . . . . . . . . . . . 150 Destroy Structure 2522 | . 12 1 1 1 1 . 28 . . . . 84 70 46 48 410 222 . . 26 6 15 75 1476 Partial Spotted 555 | . . . . 60 . . 45 . . . . . 60 . . 30 105 . . 30 . 75 60 90 Lose Combat Pursuer 1530 | . 15 15 15 15 . . . 15 15 . 75 105 30 . . 165 15 . 15 90 . 45 30 870 Active Sensor Use 600 | . . . . . . . . . . . . . . . . . . . . . . . . 600 Influence Decreases 15503 | . 125 395 184 671 346 198 448 645 330 990 198 592 746 803 848 867 1892 547 309 1358 554 205 781 1471 Entered New Map 6637 | . . 46 34 173 216 198 . 515 190 990 . 70 400 643 650 317 571 447 169 338 121 65 173 311 Time Decay 5375 | . 125 160 150 198 110 . 448 130 140 . 198 362 326 140 198 110 571 100 140 270 191 140 398 770 Lost Part 30 | . . . . . . . . . . . . 10 . . . . . . . . . . . 20 Lost Ally 350 | . . . . . 20 . . . . . . . 20 20 . 140 . . . . 20 . 60 70 Purge Threat 3111 | . . 189 . 300 . . . . . . . 150 . . . 300 750 . . 750 222 . 150 300 Squads Dispatched 140 | . 3 . 3 3 . . 19 . . . 1 13 4 1 . 11 15 . . 8 5 2 14 38 Investigation 40 | . 1 . 1 1 . . 5 . . . . 10 1 1 . 1 5 . . 1 1 . 2 10 Extermination 35 | . . . . . . . 2 . . . . 3 . . . 1 6 . . 2 3 2 7 9 Reinforcement 34 | . 2 . 2 . . . 8 . . . . . 1 . . 6 3 . . 5 1 . 1 5 Assault 22 | . . . . 2 . . 2 . . . 1 . 2 . . 2 1 . . . . . 1 11 Garrison 9 | . . . . . . . 2 . . . . . . . . 1 . . . . . . 3 3 Intercept . | . . . . . . . . . . . . . . . . . . . . . . . . . Searches Triggered . | . . . . . . . . . . . . . . . . . . . . . . . . . Data Miner Redirects 2 | . . . . . . . . . . . . . 2 . . . . . . . . . . . Construction Impeded 3 | . . . . . . . 1 . . . . . 1 . . 1 . . . . . . . . Haulers Reinforced 6 | . . . . . . . 2 . . . . . . . . . 2 . . 2 . . . . Active Scanning Responses 6 | . . . . . . . . . . . . . . . . . . . . . . . . 6 Cargo Convoy Interrupts 1 | . . . . . . . . . . . . 1 . . . . . . . . . . . . Stealth | -11 -10 -9 -8 -8 -8 -8 -6 -6 -6 -6 -5 -5 -5 -5 -5 -5 -4 -4 -4 -3 -3 -2 -2 -2 --------- Run | Yrd Mat Mat Mat Sto Rec Scr Fac Low Low Dat Pro Fac Ext Cet Arc Hub Fac Upp Upp Res Qua Res Tes Frg Distress Signals 13 | . 1 . . . . . 1 . . . . . 1 1 . . . . . 3 . 1 . 5 Communications Jammed 166 | . . . . . . . . . . . . 2 16 . . 26 19 . . 1 1 13 5 83 Distress Signals 138 | . . . . . . . . . . . . 2 16 . . 26 11 . . 1 . . 5 77 Times Spotted 1092 | . 11 21 22 22 3 40 47 13 15 . 19 41 39 11 4 33 51 7 21 26 17 11 24 594 Peak Tracking Total 20 | . 3 6 7 7 2 4 6 6 7 . 7 4 5 5 1 20 3 2 7 8 5 6 3 13 Tactical Retreats 67 | . 1 1 1 1 . . 2 1 1 . 2 4 1 . . 4 2 . 1 3 . 1 2 39 Traps | -11 -10 -9 -8 -8 -8 -8 -6 -6 -6 -6 -5 -5 -5 -5 -5 -5 -4 -4 -4 -3 -3 -2 -2 -2 ------- Run | Yrd Mat Mat Mat Sto Rec Scr Fac Low Low Dat Pro Fac Ext Cet Arc Hub Fac Upp Upp Res Qua Res Tes Frg Traps Triggered 48 | . . . . 3 . . . . . . . 3 5 . . 1 5 . . 1 . 3 1 26 Indirectly . | . . . . . . . . . . . . . . . . . . . . . . . . . Trap Hack Attempts . | . . . . . . . . . . . . . . . . . . . . . . . . . Triggered . | . . . . . . . . . . . . . . . . . . . . . . . . . Disarmed . | . . . . . . . . . . . . . . . . . . . . . . . . . Reprogrammed 5 | . . . . . . . . . . . . . . . . . 5 . . . . . . . Reused 1 | . . . . . . . . . . . . . . . . . 1 . . . . . . . Traps Extracted . | . . . . . . . . . . . . . . . . . . . . . . . . . Installed . | . . . . . . . . . . . . . . . . . . . . . . . . . Triggered 1 | . . . . . . . . . . . . . . . . . 1 . . . . . . . Machines | -11 -10 -9 -8 -8 -8 -8 -6 -6 -6 -6 -5 -5 -5 -5 -5 -5 -4 -4 -4 -3 -3 -2 -2 -2 ---------- Run | Yrd Mat Mat Mat Sto Rec Scr Fac Low Low Dat Pro Fac Ext Cet Arc Hub Fac Upp Upp Res Qua Res Tes Frg Machines Disabled 173 | . . 1 . 5 . 4 14 1 . . . 6 2 . 1 28 20 2 2 1 2 . 8 76 Max in Single Turn 15 | . . 1 . 1 . 2 3 1 . . . 1 1 . . 15 5 1 1 1 1 . 1 7 Garrison Access 3 | . . . . . . . 1 . . . . . . . . 1 . . . . . . . 1 Network Hub 2 | . . . . . . . . . . . . . . . . 2 . . . . . . . . Machines Repaired . | . . . . . . . . . . . . . . . . . . . . . . . . . Machines Dismantled . | . . . . . . . . . . . . . . . . . . . . . . . . . Machines Sabotaged . | . . . . . . . . . . . . . . . . . . . . . . . . . Overloaded Fab Kills . | . . . . . . . . . . . . . . . . . . . . . . . . . Hacking | -11 -10 -9 -8 -8 -8 -8 -6 -6 -6 -6 -5 -5 -5 -5 -5 -5 -4 -4 -4 -3 -3 -2 -2 -2 --------- Run | Yrd Mat Mat Mat Sto Rec Scr Fac Low Low Dat Pro Fac Ext Cet Arc Hub Fac Upp Upp Res Qua Res Tes Frg Machines Accessed 161 | . 5 6 5 8 12 9 12 . 3 4 . 19 5 3 . 5 17 . 1 6 11 4 8 18 Terminals 110 | . 5 6 5 8 6 . 9 . 1 . . 11 5 3 . 4 11 . 1 5 10 3 7 10 Fabricators 9 | . . . . . . . 2 . . . . 2 . . . . 1 . . . . . . 4 Repair Stations 2 | . . . . . . . . . . . . . . . . . 1 . . . . 1 . . Recycling Units 17 | . . . . . 4 . 1 . . . . 5 . . . . 3 . . 1 . . . 3 Scanalyzers . | . . . . . . . . . . . . . . . . . . . . . . . . . Garrison Access 6 | . . . . . . . . . . . . 1 . . . 1 1 . . . 1 . 1 1 Total Hacks 572 | . 12 15 13 20 46 61 32 . 8 30 . 41 13 8 . 18 78 . 8 35 42 11 37 44 Successful 303 | . 2 6 3 9 39 61 8 . 8 30 . 20 3 5 . 5 28 . 8 14 16 4 16 18 Failed 268 | . 10 9 10 11 7 . 24 . . . . 21 10 3 . 13 49 . . 21 26 7 21 26 Catastrophic 78 | . 4 6 4 . 1 . 4 . . . . 6 5 . . 2 12 . . 6 7 4 4 13 Database Lockouts 1 | . . . . . . . . . . . . . . . . . 1 . . . . . . . Manual 242 | . 10 13 13 11 15 . 9 . . . . 17 14 1 . 10 51 . . 26 28 3 9 12 Terminals 380 | . 12 15 13 20 17 . 24 . 6 . . 27 13 8 . 15 66 . 8 34 40 6 36 20 Fabricators 27 | . . . . . . . 5 . . . . 8 . . . . 2 . . . . . . 12 Repair Stations 8 | . . . . . . . . . . . . . . . . . 3 . . . . 5 . . Recycling Units 28 | . . . . . 5 . 3 . . . . 5 . . . . 3 . . 1 . . . 11 Scanalyzers . | . . . . . . . . . . . . . . . . . . . . . . . . . Garrison Access 12 | . . . . . . . . . . . . 1 . . . 3 4 . . . 2 . 1 1 Terminal Hacks 250 | . 1 4 1 8 34 61 3 . 8 30 . 9 2 5 . 4 19 . 8 12 14 1 14 12 Record 130 | . . 1 . . 26 53 . . 7 11 . 6 . 4 . . 1 . 8 1 3 . 2 7 Part Schematic 13 | . . . . 1 . . 1 . . 10 . . . . . . . . . . . . 1 . Robot Schematic 6 | . . . . . . . . . . 6 . . . . . . . . . . . . . . Robot Analysis 22 | . . . . . 5 7 1 . . . . 1 2 . . . 3 . . 2 1 . . . Prototype ID Bank 6 | . . . . . 2 . . . . 3 . . . . . . . . . 1 . . . . Open Door 6 | . . . . 4 . . . . 1 . . . . 1 . . . . . . . . . . Level Access Points 3 | . . . . . . . . . . . . . . . . 1 . . . 1 1 . . . Branch Access Points 9 | . 1 1 1 . . . . . . . . 1 . . . . 2 . . 1 1 . 1 . Emergency Access Points 1 | . . . . . . . . . . . . . . . . . . . . . . . 1 . Terminal Index 4 | . . . . 1 . . . . . . . . . . . . . . . . 1 . 2 . Recycling Unit Index 2 | . . . . . . . . . . . . . . . . . 1 . . . 1 . . . Alert Level 3 | . . . . . 1 . . . . . . . . . . . . . . . . 1 . 1 Unreport Threat 24 | . . 2 . 2 . . . . . . . 1 . . . 2 5 . . 5 4 . 1 2 Reprogram Traps 2 | . . . . . . . . . . . . . . . . . 2 . . . . . . . Security Status 2 | . . . . . . . . . . . . . . . . . 1 . . . . . 1 . Patrol Status 1 | . . . . . . . . . . . . . . . . . . . . . . . 1 . Recall Investigation 2 | . . . . . . . . . . . . . . . . . . . . 1 1 . . . Recall Extermination 4 | . . . . . . . . . . . . . . . . . 2 . . . 1 . . 1 Recall Reinforcements 3 | . . . . . . . . . . . . . . . . 1 . . . . . . 2 . Recall Assault 1 | . . . . . . . . . . . . . . . . . 1 . . . . . . . Hauler Manifests 1 | . . . . . . . . . . . . . . . . . 1 . . . . . . . Registered Components 1 | . . . . . . . 1 . . . . . . . . . . . . . . . . . Zone Layout 1 | . . . . . . . . . . . . . . . . . . . . . . . 1 . Proto ID Catalog 2 | . . . . . . 1 . . . . . . . . . . . . . . . . . 1 Protovariant Controls 1 | . . . . . . . . . . . . . . . . . . . . . . . 1 . Fabricator Hacks 12 | . . . . . . . 2 . . . . 4 . . . . 2 . . . . . . 4 Network Status 1 | . . . . . . . 1 . . . . . . . . . . . . . . . . . Load Schematic 6 | . . . . . . . 1 . . . . 2 . . . . 1 . . . . . . 2 Build 5 | . . . . . . . . . . . . 2 . . . . 1 . . . . . . 2 Repair Station Hacks 4 | . . . . . . . . . . . . . . . . . 2 . . . . 2 . . Scan Component 2 | . . . . . . . . . . . . . . . . . 1 . . . . 1 . . Repair 2 | . . . . . . . . . . . . . . . . . 1 . . . . 1 . . Recycling Unit Hacks 5 | . . . . . 4 . 1 . . . . . . . . . . . . . . . . . Retrieve Components 5 | . . . . . 4 . 1 . . . . . . . . . . . . . . . . . Scanalyzer . | . . . . . . . . . . . . . . . . . . . . . . . . . Garrison Access Hacks . | . . . . . . . . . . . . . . . . . . . . . . . . . Unauthorized Hacks 32 | . 1 2 2 1 1 . 2 . . . . 7 1 . . 1 5 . . 2 2 1 2 2 Terminals 16 | . 1 2 2 1 1 . 2 . . . . 1 1 . . . 1 . . 1 1 1 1 . Botnet 16 | . 1 2 2 1 1 . 2 . . . . 1 1 . . . 1 . . 1 1 1 1 . Fabricators . | . . . . . . . . . . . . . . . . . . . . . . . . . Repair Stations . | . . . . . . . . . . . . . . . . . . . . . . . . . Recycling Units 11 | . . . . . . . . . . . . 5 . . . . 3 . . 1 . . . 2 Fedlink 11 | . . . . . . . . . . . . 5 . . . . 3 . . 1 . . . 2 Scanalyzers . | . . . . . . . . . . . . . . . . . . . . . . . . . Garrison Access 5 | . . . . . . . . . . . . 1 . . . 1 1 . . . 1 . 1 . Reprogram 5 | . . . . . . . . . . . . 1 . . . 1 1 . . . 1 . 1 . Data Cores Recovered 12 | . . . 1 1 . . 2 . . . . . 1 . . . 2 . . 1 2 . 1 1 Used 8 | . . . 1 . . . 2 . . . . . 1 . . . 1 . . . 2 . . 1 Hacking Detections 115 | . 5 6 5 6 7 . 11 . 1 . . 13 5 2 . 4 13 . . 5 7 3 7 15 Full Trace Events 20 | . 2 . 1 1 . . 5 . . . . 5 1 1 . . 1 . . . . . 1 2 Feedback Events . | . . . . . . . . . . . . . . . . . . . . . . . . . Feedback Blocked . | . . . . . . . . . . . . . . . . . . . . . . . . . Robot Schematics Acquired 8 | . . . . . . . . . . 6 . . . . . . . . . . . . 1 1 Robots Built 4 | . . . . . . . . . . . . . . . . . . . . . . . . 4 Authchips . | . . . . . . . . . . . . . . . . . . . . . . . . . Time 305 | . . . . . . . . . . . . 169 . . . . . . . . . . . 136 Total Robot Build Rating 34 | . . . . . . . . . . . . . . . . . . . . . . . . 34 Part Schematics Acquired 26 | . . . . 1 . . 1 . . 10 . . . . . . . . . . . . 5 9 Parts Built 4 | . . . . . . . . . . . . 2 . . . . 2 . . . . . . . Authchips . | . . . . . . . . . . . . . . . . . . . . . . . . . Time 245 | . . . . . . . . . . . . 128 . . . . 117 . . . . . . . Total Part Build Rating 30 | . . . . . . . . . . . . 16 . . . . 14 . . . . . . . Parts Repaired 2 | . . . . . . . . . . . . . . . . . 1 . . . . 1 . . Time 37 | . . . . . . . . . . . . . . . . . 14 . . . . 23 . . Parts Recycled . | . . . . . . . . . . . . . . . . . . . . . . . . . Recycled Matter . | . . . . . . . . . . . . . . . . . . . . . . . . . Retrieved Matter . | . . . . . . . . . . . . . . . . . . . . . . . . . Retrieved Components 4 | . . . . . 4 . . . . . . . . . . . . . . . . . . . Parts Scanalyzed . | . . . . . . . . . . . . . . . . . . . . . . . . . Part Schematics Acquired . | . . . . . . . . . . . . . . . . . . . . . . . . . Parts Damaged . | . . . . . . . . . . . . . . . . . . . . . . . . . Bothacking | -11 -10 -9 -8 -8 -8 -8 -6 -6 -6 -6 -5 -5 -5 -5 -5 -5 -4 -4 -4 -3 -3 -2 -2 -2 ------------ Run | Yrd Mat Mat Mat Sto Rec Scr Fac Low Low Dat Pro Fac Ext Cet Arc Hub Fac Upp Upp Res Qua Res Tes Frg Used RIF Installer . | . . . . . . . . . . . . . . . . . . . . . . . . . Robots Hacked . | . . . . . . . . . . . . . . . . . . . . . . . . . Non-combat . | . . . . . . . . . . . . . . . . . . . . . . . . . Combat . | . . . . . . . . . . . . . . . . . . . . . . . . . Robot Hacks Applied . | . . . . . . . . . . . . . . . . . . . . . . . . . Relay Couplers Released 2 | . . . . . . . . . . . . . . . . 1 . . . . . . . 1 Machine Destruction 1 | . . . . . . . . . . . . . . . . 1 . . . . . . . . Programmers 1 | . . . . . . . . . . . . . . . . . . . . . . . . 1 Fabnet Peak Effective % . | . . . . . . . . . . . . . . . . . . . . . . . . . Robots Rewired . | . . . . . . . . . . . . . . . . . . . . . . . . . Allies Hacked 1 | . . . . . . . . . . . . . . . . . . . . . . . 1 . Hacks Repelled . | . . . . . . . . . . . . . . . . . . . . . . . . . Allies | -11 -10 -9 -8 -8 -8 -8 -6 -6 -6 -6 -5 -5 -5 -5 -5 -5 -4 -4 -4 -3 -3 -2 -2 -2 -------- Run | Yrd Mat Mat Mat Sto Rec Scr Fac Low Low Dat Pro Fac Ext Cet Arc Hub Fac Upp Upp Res Qua Res Tes Frg Total Allies 25 | . . . . 2 . 1 . . . . . . 5 5 . 2 . . . . 2 . 4 4 Largest Group 8 | . . . . 2 2 1 1 . . . . . 4 8 7 6 . . . . 2 . 4 4 Highest-Rated Group 688 | . . . . 62 62 90 90 . . . . . 254 688 545 512 . . . . 164 . 590 210 Highest-Rated Ally 344 | . . . . 31 31 90 90 . . . . . 159 159 96 96 . . . . 82 . 344 58 Total Orders . | . . . . . . . . . . . . . . . . . . . . . . . . . Ally Attacks 260 | . . . . . 8 2 55 . . . . . 30 57 13 49 . . . . 4 . 34 8 Total Damage 8481 | . . . . . 169 85 2497 . . . . . 658 1344 976 1412 . . . . 100 . 1023 217 Kills 52 | . . . . . 3 1 23 . . . . . 2 8 4 6 . . . . . . 5 . Allies Corrupted 4 | . . . . . . . . . . . . . . . . 4 . . . . . . . . Allies Melted 6 | . . . . . . 6 . . . . . . . . . . . . . . . . . . Intel | -11 -10 -9 -8 -8 -8 -8 -6 -6 -6 -6 -5 -5 -5 -5 -5 -5 -4 -4 -4 -3 -3 -2 -2 -2 ------- Run | Yrd Mat Mat Mat Sto Rec Scr Fac Low Low Dat Pro Fac Ext Cet Arc Hub Fac Upp Upp Res Qua Res Tes Frg Active Infowar (turns) 16958 | . . . . . . 651 1021 260 291 37 402 834 723 283 411 230 1734 202 291 588 670 293 956 7081 Optics 7170 | . . . . . . . 497 260 291 37 402 834 723 283 411 230 1718 202 291 588 401 . . 2 Sensors 11803 | . . . . . . 651 1021 260 291 37 402 834 723 283 411 230 1731 202 278 588 670 238 956 1997 A.S.S. 5084 | . . . . . . . . . . . . . . . . . . . . . . . . 5084 Cloaking 2333 | . . . . . . . . . . . . . . . . . . . . . . . . 2333 Jamming 12809 | . . . . . . . . . . . 241 832 723 283 411 230 1734 202 291 588 670 293 956 5355 ECM 74 | . . . . . . . 74 . . . . . . . . . . . . . . . . . Robot Analysis Total 22 | . . . . . 5 7 1 . . . . 1 2 . . . 3 . . 2 1 . . . Derelict Logs Recovered 5 | . . . . . . . . 1 2 . 1 . . . . . . . 1 . . . . . Drone Launches . | . . . . . . . . . . . . . . . . . . . . . . . . . Drone Recoveries . | . . . . . . . . . . . . . . . . . . . . . . . . . Exploration | -11 -10 -9 -8 -8 -8 -8 -6 -6 -6 -6 -5 -5 -5 -5 -5 -5 -4 -4 -4 -3 -3 -2 -2 -2 ------------- Run | Yrd Mat Mat Mat Sto Rec Scr Fac Low Low Dat Pro Fac Ext Cet Arc Hub Fac Upp Upp Res Qua Res Tes Frg Turns Passed 18998 | 38 436 344 304 404 234 799 1153 260 291 37 402 834 723 283 411 230 1734 202 291 588 670 293 956 7081 Spaces Moved 30862 | 32 332 395 409 657 615 1667 2296 735 690 152 742 1724 985 355 195 503 2568 426 645 1386 1157 633 1857 9706 Core 166 | 3 . . . . . . . . . . . . . . . . . . . . . . . 163 Treads . | . . . . . . . . . . . . . . . . . . . . . . . . . Legs . | . . . . . . . . . . . . . . . . . . . . . . . . . Wheels 378 | 29 332 17 . . . . . . . . . . . . . . . . . . . . . . Hover 78 | . . 78 . . . . . . . . . . . . . . . . . . . . . . Flight 30240 | . . 300 409 657 615 1667 2296 735 690 152 742 1724 985 355 195 503 2568 426 645 1386 1157 633 1857 9543 Fastest Speed 10 | 50 90 29 29 26 26 26 24 24 24 24 24 24 24 24 24 24 23 24 24 24 21 21 21 10 Average Speed 24 | 85 90 37 29 26 26 26 25 24 24 24 24 24 24 24 24 24 23 24 24 24 21 21 21 22 Slowest Speed 125 | 90 90 125 29 29 26 101 27 24 24 24 24 28 24 24 24 24 100 24 24 24 24 25 21 101 Overloaded Moves . | . . . . . . . . . . . . . . . . . . . . . . . . . Propulsion Burnouts . | . . . . . . . . . . . . . . . . . . . . . . . . . Robots Hopped 96 | . . 5 . 5 4 1 10 1 1 . . 7 6 . . 7 17 . . 6 7 2 10 7 Potential Cave-ins 11 | . . . . . . . . . . . . . . . . . . . . . . . 2 9 Cave-ins Triggered . | . . . . . . . . . . . . . . . . . . . . . . . . . Teleports 1 | . . . . . . . . . . . . . . . . . . . . . . . . 1 Exploration Rate (%) 70 | 3 74 53 39 89 93 83 60 92 93 81 89 47 85 92 94 58 64 63 83 41 95 18 91 89 Regions Visited 24 Branch Regions 16 Pre-discovered Areas 6 | . . . . . . 2 . . 2 1 . 1 . . . . . . . . . . . . Known Exits Taken 23 | . 1 1 1 1 1 1 1 1 1 1 1 1 1 1 1 1 1 1 1 1 1 1 1 . Unknown Exits Taken 1 | 1 . . . . . . . . . . . . . . . . . . . . . . . . Scrap Searched 14 | . . . . . . 3 . 3 2 . 4 . . . . . . . 2 . . . . . Spaces Dug 69 | . . . . . 3 1 . . . . . 5 2 . . 10 1 . . . . . 13 34 Terrain Destroyed 2393 | . 8 . . . 3 2 22 . 8 . 3 53 32 23 1 366 164 36 31 13 7 6 27 1588 Melee . | . . . . . . . . . . . . . . . . . . . . . . . . . Projectile 548 | . . . . . 3 2 . . . . . 15 25 7 1 17 72 32 31 2 5 5 24 307 AOE 1839 | . 8 . . . . . 22 . 8 . 3 38 7 16 . 349 92 4 . 11 . . . 1281 Terrain Rammed . | . . . . . . . . . . . . . . . . . . . . . . . . . Walls Destroyed . | . . . . . . . . . . . . . . . . . . . . . . . . . Machines Disabled . | . . . . . . . . . . . . . . . . . . . . . . . . . Actions | -11 -10 -9 -8 -8 -8 -8 -6 -6 -6 -6 -5 -5 -5 -5 -5 -5 -4 -4 -4 -3 -3 -2 -2 -2 --------- Run | Yrd Mat Mat Mat Sto Rec Scr Fac Low Low Dat Pro Fac Ext Cet Arc Hub Fac Upp Upp Res Qua Res Tes Frg Total 38906 | 38 399 488 502 782 646 1870 2616 774 743 151 887 1999 1316 515 542 548 3505 488 721 1552 1515 745 2273 13291 Wait 4248 | . 24 33 14 37 9 80 105 10 6 . 70 129 72 114 328 1 718 23 26 55 296 32 268 1798 Move 30648 | 31 331 384 408 646 606 1664 2275 732 687 151 741 1709 972 354 194 488 2533 425 644 1374 1142 628 1837 9692 Hop 94 | . . 5 . 5 4 1 10 1 1 . . 7 6 . . 7 17 . . 5 7 2 9 7 Pick Up 40 | . . 1 1 2 . 9 3 2 . . 1 3 . 1 1 2 1 . . . 2 . 3 8 Fast Attach 154 | 7 3 2 1 2 . 3 12 . . . 1 9 . . . 3 16 . . 6 5 6 11 67 Attach 16 | . . . . 1 . 3 5 . . . . . . . . 1 . . . . 1 . 2 3 Detach 6 | . . . . . . . 1 . . . . . . . . . . . . . . . 3 2 Swap 163 | . 1 10 3 17 1 1 13 . 3 . 1 11 3 1 . . 4 . . 5 . 3 6 80 Drop 170 | . 1 3 1 6 1 11 17 1 . . 3 12 . . 1 2 17 . . 8 5 6 14 61 Fire 1688 | . 33 45 40 41 17 75 106 18 28 . 33 78 92 24 11 36 102 20 33 47 31 24 89 665 Melee . | . . . . . . . . . . . . . . . . . . . . . . . . . Ram 1 | . . . . . . . . . . . . . . . . . . . . . . . . 1 Kick . | . . . . . . . . . . . . . . . . . . . . . . . . . Crush . | . . . . . . . . . . . . . . . . . . . . . . . . . Escape Stasis 291 | . . . . . . . . . . . . . 88 . . . 15 . . . . 22 . 166 Rewire . | . . . . . . . . . . . . . . . . . . . . . . . . . Trap . | . . . . . . . . . . . . . . . . . . . . . . . . . Miscellaneous 1387 | . 6 5 34 25 8 23 69 10 18 . 37 41 83 21 7 8 82 20 18 52 26 22 31 741 Route ------- -11/Scrapyard -10/Materials (discovered 3 exits: *Mat / *Min x2) -9/Materials (discovered 3 exits: *Mat / Min x2) -8/Materials -8/Storage (discovered 2 exits: *Fac / *Rec) -8/Recycling (discovered 2 exits: *Fac / *Scr) -8/Scraptown (discovered 2 exits: *Fac x2) -6/Factory (discovered 4 exits: *Fac x3 / *Low) -6/Lower Caves -6/Lower Caves (discovered 2 exits: *Fac / *Dat) -6/Data Miner -5/Proximity Caves -5/Factory (discovered 6 exits: *Fac x2 / *Upp x2 / *Ext x2) -5/Extension (discovered 3 exits: *Fac x2 / *Cet) -5/Cetus (discovered 3 exits: *Fac x2 / *Arc) -5/Archives (discovered 3 exits: *Fac / *Hub x2) -5/Hub_04(d) (discovered 4 exits: *Fac x4) -4/Factory (discovered 4 exits: *Res x2 / *Upp x2) -4/Upper Caves -4/Upper Caves (discovered 2 exits: *Res / *War) -3/Research (discovered 6 exits: *Res x3 / Arm / *Qua x2) -3/Quarantine -2/Research -2/Testing (discovered 3 exits: *Acc / [*Sec] / *Frg) -2/Protoforge (discovered 1 exit: *Acc) History --------- Turn | Location | Event 1 | -11/Scrapyard | Upgraded with Power slot (x1) 1 | -11/Scrapyard | Upgraded with Propulsion slot (x1) 1 | -11/Scrapyard | Upgraded with Utility slot (x1) 1 | -11/Scrapyard | Upgraded with Weapon slot (x2) 16 | -11/Scrapyard | Discovered new exit (range 16) 39 | -11/Scrapyard | Entered Materials 95 | -10/Materials | Identified exit to Mines 305 | -10/Materials | Build established: Gunner 463 | -10/Materials | Discovered new exit (range 8) 469 | -10/Materials | Identified exit to Materials 475 | -10/Materials | Entered another Materials area 477 | -9/Materials | Reached level 2 558 | -9/Materials | Upgraded with Propulsion slot (x1) 572 | -9/Materials | Identified exit to Mines 630 | -9/Materials | Reached level 3 798 | -9/Materials | Upgraded with Utility slot (x1) 811 | -9/Materials | Discovered new exit (range 7) 819 | -9/Materials | Identified exit to Materials 819 | -9/Materials | Entered another Materials area 821 | -8/Materials | Reached level 4 861 | -8/Materials | Core integrity fell below 50% 876 | -8/Materials | Build established: Sprinter 898 | -8/Materials | Reached level 5 964 | -8/Materials | Upgraded with Utility slot (x1) 1043 | -8/Materials | Identified exit to Storage 1123 | -8/Materials | Entered Storage 1125 | -8/Storage | Reached level 6 1127 | -8/Storage | Destroyed 7 combat bots 1210 | -8/Storage | Upgraded with Propulsion slot (x1) 1241 | -8/Storage | Reached level 7 1335 | -8/Storage | Upgraded with Utility slot (x1) 1350 | -8/Storage | Destroyed 9 combat bots 1355 | -8/Storage | Reached level 8 1388 | -8/Storage | Discovered new exit (range 16) 1392 | -8/Storage | Identified exit to Factory 1463 | -8/Storage | Met a pair of Derelict thieves 1506 | -8/Storage | Used back door to open Recycling access 1506 | -8/Storage | Discovered new exit (range 4) 1506 | -8/Storage | Identified exit to Recycling 1527 | -8/Storage | Entered Recycling 1527 | -8/Recycling | Accompanied by 2 allies 1529 | -8/Recycling | Reached level 9 1574 | -8/Recycling | Discovered new exit (range 7) 1576 | -8/Recycling | Identified exit to Factory 1587 | -8/Recycling | Scanned before Scraplab entrance 1757 | -8/Recycling | Entered Scraplab 1761 | -8/Recycling | Discovered new exit (range 2) 1761 | -8/Recycling | Identified exit to Scraptown 1761 | -8/Recycling | Entered Scraptown 1763 | -8/Scraptown | Reached level 10 1773 | -8/Scraptown | Heard Great Nut preacher, LISTEN AND RECITE! 1810 | -8/Scraptown | Discovered exit to Factory (range 11) 1831 | -8/Scraptown | Visited TADAMA 1841 | -8/Scraptown | Visited Comm Corps 1848 | -8/Scraptown | Visited Awakened 1853 | -8/Scraptown | Visited UFD Registry 1855 | -8/Scraptown | Visited Spacefarers 1870 | -8/Scraptown | Visited Cyclists 1880 | -8/Scraptown | Registered with UFD as "Cargohacker" 1885 | -8/Scraptown | Entered Cyclist Reading Room 1886 | -8/Scraptown | Learned location of Zion (-7) 1898 | -8/Scraptown | Visited Analyses Database 1905 | -8/Scraptown | Visited DA-N13 Charitable Foundation 1906 | -8/Scraptown | Found DCF Scrap (32 items) 1909 | -8/Scraptown | Build established: Hacker-Sprinter 1909 | -8/Scraptown | Upgraded with Utility slot (x1) 1915 | -8/Scraptown | Visited Derelict Rescue Squad 1932 | -8/Scraptown | Visited Botcube Research 1940 | -8/Scraptown | Found Lrg. Botcube 1946 | -8/Scraptown | Visited Research Penetration Think Tank 1954 | -8/Scraptown | Visited Junk Repository 1962 | -8/Scraptown | Visited Science Guys 1963 | -8/Scraptown | Received an X-ray algorithm 1972 | -8/Scraptown | Visited Scrapoid Pod Storage 1976 | -8/Scraptown | Visited Junk Cannon Lab 1985 | -8/Scraptown | Visited Scrapoid Research Area 2007 | -8/Scraptown | Met Optimus 2007 | -8/Scraptown | Accepted into 0bPrime 2038 | -8/Scraptown | Civil war broke out across Scraptown 2116 | -8/Scraptown | Lost 4 allies 2169 | -8/Scraptown | Lost 4 allies 2277 | -8/Scraptown | Lost 6 allies 2334 | -8/Scraptown | Destroyed 12 combat bots 2372 | -8/Scraptown | Found Prototype Special Weapon 2375 | -8/Scraptown | Identified Junk Cannon 2402 | -8/Scraptown | Lrg. Botcube activated 2414 | -8/Scraptown | Lost 3 allies 2436 | -8/Scraptown | Lrg. Botcube completed mutation into legged form, armed with 4 guns. 2472 | -8/Scraptown | Upgraded with Weapon slot (x1) 2560 | -8/Scraptown | Entered Factory 2560 | -6/Factory | Accompanied by 1 ally 2562 | -6/Factory | Reached level 11 2725 | -6/Factory | Reached level 12 2746 | -6/Factory | Discovered new exit (range 6) 2747 | -6/Factory | Identified exit to Lower Caves 2816 | -6/Factory | Garrison activated, responded to threat 2827 | -6/Factory | Reached level 13 2846 | -6/Factory | Ran an X-ray algorithm 2873 | -6/Factory | Discovered new exit (range 12) 2896 | -6/Factory | Identified exit to Factory 2928 | -6/Factory | Found Prototype Processor 2928 | -6/Factory | Identified Exp. Targeting Computer 2930 | -6/Factory | Upgraded with Utility slot (x1) 2957 | -6/Factory | Reached level 14 3085 | -6/Factory | Upgraded with Utility slot (x1) 3218 | -6/Factory | Discovered exit to Factory (range 21) 3245 | -6/Factory | Reached level 15 3384 | -6/Factory | Build established: Hacker-Scout 3411 | -6/Factory | Discovered exit to Factory (range 12) 3432 | -6/Factory | Reached level 16 3452 | -6/Factory | Upgraded with Propulsion slot (x1) 3634 | -6/Factory | Garrison activated, responded to threat 3648 | -6/Factory | Reached level 17 3655 | -6/Factory | Spotted B-75 Beast 3713 | -6/Factory | Entered Lower Caves 3722 | -6/Lower Caves | Attracted the attention of an 0b10 outpost 3793 | -6/Lower Caves | Identified exit to Lower Caves 3894 | -6/Lower Caves | Attracted the attention of an 0b10 checkpoint 3918 | -6/Lower Caves | Encountered a Warlord checkpoint 3973 | -6/Lower Caves | Entered another Lower Caves area 3975 | -6/Lower Caves | Reached level 18 4026 | -6/Lower Caves | Discovered exit to Factory (range 5) 4033 | -6/Lower Caves | Learned 6 Proximity Caves zone layouts 4033 | -6/Lower Caves | Learned Extension security intel 4043 | -6/Lower Caves | Entered a destroyed Warlord outpost 4120 | -6/Lower Caves | Attracted the attention of an 0b10 base 4184 | -6/Lower Caves | Encountered a Warlord checkpoint 4259 | -6/Lower Caves | Discovered new exit (range 6) 4260 | -6/Lower Caves | Identified exit to Data Miner 4264 | -6/Lower Caves | Entered Data Miner 4264 | -6/Data Miner | Discovered new exit (range 6) 4267 | -6/Data Miner | Met Data Miner 4273 | -6/Data Miner | Acquired the access code to Warlord's prototype stash 4273 | -6/Data Miner | Learned location of Section 7 (-2) 4280 | -6/Data Miner | Received God Mode back door access code from Data Miner 4301 | -6/Data Miner | Identified exit to Proximity Caves 4301 | -6/Data Miner | Entered Proximity Caves 4303 | -5/Proximity Caves | Reached level 19 4319 | -5/Proximity Caves | Attracted the attention of an 0b10 checkpoint 4370 | -5/Proximity Caves | Attracted the attention of an 0b10 outpost 4415 | -5/Proximity Caves | Reached level 20 4692 | -5/Proximity Caves | Learned Factory emergency access door positions 4703 | -5/Proximity Caves | Entered Factory 4705 | -5/Factory | Reached level 21 4738 | -5/Factory | Loaded intel: 8 recycling unit locations 4794 | -5/Factory | Learned location of Protoforge (-2) 4837 | -5/Factory | Discovered new exit (range 5) 4838 | -5/Factory | Identified exit to Upper Caves 4929 | -5/Factory | Fabricated Adv. Weapon Cycler? 4954 | -5/Factory | Upgraded with Utility slot (x1) 4966 | -5/Factory | Destroyed 7 combat bots 5036 | -5/Factory | Reached level 22 5050 | -5/Factory | Upgraded with Power slot (x1) 5057 | -5/Factory | Destroyed 11 combat bots 5278 | -5/Factory | Identified exit to Extension 5388 | -5/Factory | Build established: Scout 5391 | -5/Factory | Discovered new exit (range 11) 5393 | -5/Factory | Identified exit to Factory 5454 | -5/Factory | Discovered exit to Factory (range 15) 5457 | -5/Factory | Cargo convoy interrupted 5537 | -5/Factory | Entered Extension 5605 | -5/Extension | Rescued a captive Derelict 5624 | -5/Extension | Rescued a captive Derelict 5637 | -5/Extension | Disrupted transfer network 5653 | -5/Extension | Spotted B-75 Beast 5777 | -5/Extension | Reached level 23 5837 | -5/Extension | First assault squad dispatched 5846 | -5/Extension | Spotted B-75 Beast 5846 | -5/Extension | Destroyed B-75 Beast 5852 | -5/Extension | Incoming assault squad redirected 5867 | -5/Extension | Incoming assault squad redirected 5873 | -5/Extension | Destroyed B-75 Beast 5939 | -5/Extension | Discovered exit to Factory (range 3) 6005 | -5/Extension | Discovered new exit (range 24) 6006 | -5/Extension | Discovered exit to Factory (range 22) 6040 | -5/Extension | Rescued a captive Derelict 6045 | -5/Extension | Rescued a captive Derelict 6047 | -5/Extension | Rescued a captive Derelict 6048 | -5/Extension | Rescued a captive Derelict 6052 | -5/Extension | Destroyed 8 combat bots 6056 | -5/Extension | Rescued A7 6186 | -5/Extension | Identified exit to Cetus 6260 | -5/Extension | Entered Cetus 6260 | -5/Cetus | Accompanied by 4 allies (A7) 6265 | -5/Cetus | Acquired a Cetus Manufacturing Module code from A7 6265 | -5/Cetus | Spotted Cetus Guard 6265 | -5/Cetus | Spotted Cetus Guard 6270 | -5/Cetus | Spotted Cetus Guard 6270 | -5/Cetus | Spotted Cetus Guard 6278 | -5/Cetus | Destroyed Cetus Guard 6282 | -5/Cetus | Allies destroyed Cetus Guard 6286 | -5/Cetus | Allies destroyed Cetus Guard 6289 | -5/Cetus | Allies destroyed Cetus Guard 6317 | -5/Cetus | Started Cetus Manufacturing Module 6322 | -5/Cetus | Escorted A7 to Cetus Mainframe 6327 | -5/Cetus | Reached level 24 6341 | -5/Cetus | Discovered new exit (range 24) 6342 | -5/Cetus | Manufactured an Enhanced Grunt 6367 | -5/Cetus | Manufactured an Enhanced Grunt 6376 | -5/Cetus | Discovered exit to Factory (range 23) 6392 | -5/Cetus | Manufactured an Enhanced Grunt 6395 | -5/Cetus | Spotted Cetus Guard 6395 | -5/Cetus | Spotted Cetus Guard 6416 | -5/Cetus | Discovered exit to Factory (range 24) 6417 | -5/Cetus | Manufactured an Enhanced Grunt 6417 | -5/Cetus | Spotted Cetus Guard 6420 | -5/Cetus | Spotted Cetus Guard 6427 | -5/Cetus | Destroyed Cetus Guard 6431 | -5/Cetus | Allies destroyed Cetus Guard 6436 | -5/Cetus | Allies destroyed Cetus Guard 6442 | -5/Cetus | Manufactured an Enhanced Grunt 6447 | -5/Cetus | Allies destroyed Cetus Guard 6455 | -5/Cetus | Met Revision 17 6481 | -5/Cetus | Murdered A7 6484 | -5/Cetus | Extracted ID and sensor layout for unrecognized location from A7's data core 6503 | -5/Cetus | Identified exit to Archives 6543 | -5/Cetus | Entered Archives 6543 | -5/Archives | Accompanied by 7 allies 6562 | -5/Archives | Discovered new exit (range 23) 6572 | -5/Archives | Unable to access archive contents 6576 | -5/Archives | Identified exit to Hub_04(d) 6580 | -5/Archives | Discovered exit to Hub_04(d) (range 23) 6586 | -5/Archives | Discovered exit to Factory (range 23) 6715 | -5/Archives | Build established: Commander-Scout 6954 | -5/Archives | Entered Hub_04(d) 6954 | -5/Hub_04(d) | Accompanied by 6 allies 6974 | -5/Hub_04(d) | Network Hub disabled 7008 | -5/Hub_04(d) | Network Hub disabled 7027 | -5/Hub_04(d) | Spotted Lightning 7035 | -5/Hub_04(d) | Spotted Lightning 7035 | -5/Hub_04(d) | Allies destroyed Lightning 7039 | -5/Hub_04(d) | Spotted Lightning 7049 | -5/Hub_04(d) | Allies destroyed Lightning 7053 | -5/Hub_04(d) | Destroyed Lightning 7087 | -5/Hub_04(d) | Spotted B-75 Beast 7103 | -5/Hub_04(d) | Spotted Lightning 7143 | -5/Hub_04(d) | Spotted Lightning 7143 | -5/Hub_04(d) | Spotted Lightning 7144 | -5/Hub_04(d) | Spotted Lightning 7184 | -5/Hub_04(d) | Entered Factory 7186 | -4/Factory | Reached level 25 7280 | -4/Factory | Identified exit to Upper Caves 7288 | -4/Factory | Build established: Hacker-Scout 7329 | -4/Factory | Repaired Lyr. Light Armor Plating 7344 | -4/Factory | Discovered new exit (range 17) 7347 | -4/Factory | Identified exit to Research 7359 | -4/Factory | Core integrity fell below 50% 7520 | -4/Factory | Fabricated Dispersion Rifle? 7629 | -4/Factory | Assembled infested ambush trap array 7863 | -4/Factory | Reached level 26 7936 | -4/Factory | Upgraded with Weapon slot (x1) 7955 | -4/Factory | Upgraded with Propulsion slot (x1) 8139 | -4/Factory | Spotted B-86 Titan 8403 | -4/Factory | Discovered exit to Research (range 6) 8434 | -4/Factory | First assault squad dispatched 8500 | -4/Factory | Loaded intel: 8 recycling unit locations 8622 | -4/Factory | Spotted B-86 Titan 8772 | -4/Factory | Central database locked down 8918 | -4/Factory | Entered Upper Caves 9015 | -4/Upper Caves | Attracted the attention of an 0b10 outpost 9046 | -4/Upper Caves | Reached level 27 9080 | -4/Upper Caves | Destroyed 8 combat bots 9090 | -4/Upper Caves | Discovered new exit (range 10) 9116 | -4/Upper Caves | Identified exit to Upper Caves 9120 | -4/Upper Caves | Entered another Upper Caves area 9122 | -4/Upper Caves | Attracted the attention of an 0b10 checkpoint 9136 | -4/Upper Caves | Learned location of 1 exit from Research 9155 | -4/Upper Caves | Discovered exit to Research (range 8) 9259 | -4/Upper Caves | Discovered new exit (range 14) 9262 | -4/Upper Caves | Identified exit to Warlord 9300 | -4/Upper Caves | Attracted the attention of an 0b10 base 9300 | -4/Upper Caves | Learned location of 2 exits from Lower Caves 9300 | -4/Upper Caves | Learned location of 1 exit from Factory 9300 | -4/Upper Caves | Learned Armory security intel 9300 | -4/Upper Caves | Learned Factory trap positions 9363 | -4/Upper Caves | Spotted B-86 Titan 9366 | -4/Upper Caves | Destroyed 7 combat bots 9373 | -4/Upper Caves | Destroyed B-86 Titan 9411 | -4/Upper Caves | Entered Research 9412 | -3/Research | Identified exit to Research 9413 | -3/Research | Identified exit to Quarantine 9417 | -3/Research | Loaded intel: 5 recycling unit locations 9435 | -3/Research | Reached level 28 9519 | -3/Research | Spotted B-86 Titan 9531 | -3/Research | Destroyed B-86 Titan 9566 | -3/Research | Discovered exit to Research (range 4) 9611 | -3/Research | Revision forces began assault on 0b10 9719 | -3/Research | Upgraded with Utility slot (x1) 9734 | -3/Research | Identified exit to Armory 9813 | -3/Research | Met up with Revision 17++ 9869 | -3/Research | Spotted B-90 Cyclops 9896 | -3/Research | Destroyed B-90 Cyclops 9999 | -3/Research | Entered Quarantine 10001 | -3/Quarantine | Reached level 29 10259 | -3/Quarantine | Found Alien Artifact 10281 | -3/Quarantine | Found Alien Artifact 10555 | -3/Quarantine | Build established: Scavenger-Scout 10583 | -3/Quarantine | Found Alien Artifact 10583 | -3/Quarantine | Identified Core Reset Matrix 10583 | -3/Quarantine | Identified Hpw. Transdimensional Reconstructor 10583 | -3/Quarantine | Identified Subatomic Replicator 10583 | -3/Quarantine | Used Core Reset Matrix 10587 | -3/Quarantine | Detected hypermatrix surge 10587 | -3/Quarantine | Sensed 7 artifacts in vicinity 10591 | -3/Quarantine | Discovered exit to Research (range 9) 10669 | -3/Quarantine | Entered Research 10671 | -2/Research | Reached level 30 10787 | -2/Research | Spotted B-90 Cyclops 10819 | -2/Research | Repaired Broken Adv. Sensor Array 10954 | -2/Research | Discovered new exit (range 11) 10956 | -2/Research | Identified exit to Testing 10962 | -2/Research | Entered Testing 10964 | -2/Testing | Reached level 31 10995 | -2/Testing | Found Prototype Launcher 10995 | -2/Testing | Identified Z-bomb Delivery System 11044 | -2/Testing | Spotted PP-S7QM2HCJDE 11063 | -2/Testing | Protovariant out of control (PP-S7QM2HCJDE) 11063 | -2/Testing | Unleashed a protovariant (PP-S7QM2HCJDE) 11065 | -2/Testing | Discovered new exit (range 5) 11065 | -2/Testing | Identified exit to Access 11309 | -2/Testing | Reached level 32 11361 | -2/Testing | Found Prototype Ballistic Cannon 11361 | -2/Testing | Identified Omega Cannon 11502 | -2/Testing | Unstable Terrabomb Derivative detonated 11586 | -2/Testing | Spotted Fortress 11586 | -2/Testing | P-80 Master assimilated hostile Fortress 11683 | -2/Testing | Garrison activated, responded to threat 11886 | -2/Testing | Destroyed Fortress 11893 | -2/Testing | Found Prototype Device 11893 | -2/Testing | Identified Exp. Force Field 11896 | -2/Testing | Found Prototype Device 11896 | -2/Testing | Identified Thermal Barrier 11917 | -2/Testing | Discovered new exit (range 7) 11917 | -2/Testing | Discovered new exit (range 6) 11918 | -2/Testing | Identified exit to Protoforge 11918 | -2/Testing | Entered Protoforge 11919 | -2/Protoforge | Sensed 2 artifacts in vicinity 12060 | -2/Protoforge | Spotted Hotshot 12106 | -2/Protoforge | Discovered exit to Access (range 10) 12170 | -2/Protoforge | Spotted Hotshot 12180 | -2/Protoforge | Destroyed Hotshot 12183 | -2/Protoforge | Destroyed Hotshot 12530 | -2/Protoforge | Spotted Hotshot 12547 | -2/Protoforge | Spotted Hotshot 12586 | -2/Protoforge | Spotted B-90 Cyclops 12621 | -2/Protoforge | Spotted Hotshot 12621 | -2/Protoforge | Spotted Hotshot 12629 | -2/Protoforge | Destroyed Hotshot 12637 | -2/Protoforge | Destroyed Hotshot 12711 | -2/Protoforge | Spotted V039-f 12711 | -2/Protoforge | Spotted V428-o 12722 | -2/Protoforge | Spotted Hotshot 12723 | -2/Protoforge | Spotted Decapitator 12723 | -2/Protoforge | Spotted Decapitator 12723 | -2/Protoforge | Spotted Decapitator 12723 | -2/Protoforge | Spotted Decapitator 12798 | -2/Protoforge | Spotted V459-r 12798 | -2/Protoforge | Spotted V594-k 12798 | -2/Protoforge | Spotted V944-x 12826 | -2/Protoforge | Spotted Decapitator 12826 | -2/Protoforge | Spotted Decapitator 12826 | -2/Protoforge | Spotted Decapitator 12826 | -2/Protoforge | Spotted V443-k 12826 | -2/Protoforge | Spotted V144-z 12832 | -2/Protoforge | Found Cep. RG22 Armor 12936 | -2/Protoforge | Reached level 33 13007 | -2/Protoforge | Destroyed Decapitator 13010 | -2/Protoforge | Destroyed Decapitator 13012 | -2/Protoforge | Destroyed Decapitator 13031 | -2/Protoforge | Destroyed Decapitator 13064 | -2/Protoforge | Spotted V800-x 13071 | -2/Protoforge | Found Cep. NT7 Matterbank 13168 | -2/Protoforge | First assault squad dispatched 13182 | -2/Protoforge | Found Prototype Energy Gun 13182 | -2/Protoforge | Identified Cep. Variable Chargecaster 13187 | -2/Protoforge | Found Prototype Ballistic Gun 13187 | -2/Protoforge | Identified Cep. XC Strikerail 13194 | -2/Protoforge | Found Cep. XC Strikerail 13197 | -2/Protoforge | Found Cep. XC Strikerail 13198 | -2/Protoforge | Found Cep. XC Strikerail 13200 | -2/Protoforge | Found Prototype Energy Gun 13200 | -2/Protoforge | Identified Cep. Disintegration Ray 13204 | -2/Protoforge | Found Cep. Disintegration Ray 13210 | -2/Protoforge | Found Cep. Variable Chargecaster 13236 | -2/Protoforge | Additional patrols dispatched to research labs 13242 | -2/Protoforge | Found Cep. Navigation Harness 13248 | -2/Protoforge | System corruption reached 10% 13299 | -2/Protoforge | Spotted AP7-3 13304 | -2/Protoforge | Destroyed AP7-3 13309 | -2/Protoforge | Destroyed AP7-3 13362 | -2/Protoforge | Found Cep. Dimensional Manipulator 13364 | -2/Protoforge | Upgraded with Weapon slot (x1) 13365 | -2/Protoforge | Found Cep. Cloak Mesh 13698 | -2/Protoforge | Found Prototype Ballistic Cannon 13698 | -2/Protoforge | Identified Cep. Heavy Railcannon 13705 | -2/Protoforge | Found Cep. XC Strikerail 13707 | -2/Protoforge | Found Prototype Energy Gun 13707 | -2/Protoforge | Identified Cep. Lightning Penetrator 13836 | -2/Protoforge | Spotted Decapitator 13836 | -2/Protoforge | Spotted Decapitator 13837 | -2/Protoforge | Destroyed Decapitator 13843 | -2/Protoforge | Superfortress began startup sequence 13852 | -2/Protoforge | Spotted V870-h 13852 | -2/Protoforge | Spotted V330-c 13854 | -2/Protoforge | Spotted Immortal 13861 | -2/Protoforge | Spotted Immortal 13878 | -2/Protoforge | Destroyed Immortal 13881 | -2/Protoforge | Destroyed Immortal 13893 | -2/Protoforge | Spotted V185-d 13899 | -2/Protoforge | Spotted V225-d 13905 | -2/Protoforge | Destroyed V225-d 13915 | -2/Protoforge | Found Exp. Active Sensor Suite 13941 | -2/Protoforge | Destroyed Decapitator 13968 | -2/Protoforge | Destroyed V800-x 14015 | -2/Protoforge | Destroyed V185-d 14023 | -2/Protoforge | Destroyed V870-h 14031 | -2/Protoforge | Core integrity fell below 50% 14033 | -2/Protoforge | Destroyed V330-c 14049 | -2/Protoforge | Found Prototype Power Core 14049 | -2/Protoforge | Identified Cep. Zero-point Core 14063 | -2/Protoforge | Found Cep. XC Strikerail 14111 | -2/Protoforge | Spotted Hotshot 14125 | -2/Protoforge | Found Cep. Zero-point Core 14133 | -2/Protoforge | Spotted Decapitator 14133 | -2/Protoforge | Destroyed Decapitator 14135 | -2/Protoforge | Spotted Decapitator 14136 | -2/Protoforge | Destroyed Decapitator 14145 | -2/Protoforge | Garrison activated, responded to threat 14151 | -2/Protoforge | Destroyed Hotshot 14151 | -2/Protoforge | Destroyed Hotshot 14198 | -2/Protoforge | Destroyed 12 combat bots 14221 | -2/Protoforge | System corruption reached 30% 14343 | -2/Protoforge | Found Cep. Variable Chargecaster 14384 | -2/Protoforge | Found Cep. Nanofilaments [Conductive] 14384 | -2/Protoforge | Installed Cep. Nanofilaments [Conductive], 2 resistances modified: TH -15%, EM +25% 14670 | -2/Protoforge | Build established: Scavenger-Executioner 14679 | -2/Protoforge | Found Prototype Device 14679 | -2/Protoforge | Identified Cep. Weapon Articulator 14695 | -2/Protoforge | Found Prototype Processor 14695 | -2/Protoforge | Identified Cep. Melee Reflex Suite 14699 | -2/Protoforge | Found Prototype Device 14699 | -2/Protoforge | Identified Femtoactuators 14704 | -2/Protoforge | Found Prototype Device 14704 | -2/Protoforge | Identified Cep. Recoil Nullifier 14708 | -2/Protoforge | Found Prototype Device 14708 | -2/Protoforge | Identified Cep. Networked Targeting System 14777 | -2/Protoforge | Found Prototype Device 14777 | -2/Protoforge | Identified Crosscalibrator 14783 | -2/Protoforge | Found Prototype Device 14783 | -2/Protoforge | Identified Exp. Trap Extractor 14793 | -2/Protoforge | Spotted Decapitator 14793 | -2/Protoforge | Spotted Decapitator 14793 | -2/Protoforge | Spotted Decapitator 14793 | -2/Protoforge | Spotted Decapitator 14797 | -2/Protoforge | Spotted Immortal 14797 | -2/Protoforge | Spotted Immortal 14827 | -2/Protoforge | Reached level 34 14827 | -2/Protoforge | Destroyed Immortal 14833 | -2/Protoforge | Destroyed Immortal 14877 | -2/Protoforge | Scanned by Researcher 14916 | -2/Protoforge | Found Prototype Launcher 14916 | -2/Protoforge | Identified Cep. Rapid Grenade Launcher 14918 | -2/Protoforge | Found Prototype Launcher 14918 | -2/Protoforge | Identified Cep. EMP Blanket Launcher 14945 | -2/Protoforge | Found Cep. Tiamat Rocket Array 15016 | -2/Protoforge | Destroyed Decapitator 15016 | -2/Protoforge | Destroyed Decapitator 15016 | -2/Protoforge | Destroyed Decapitator 15020 | -2/Protoforge | Destroyed Decapitator 15086 | -2/Protoforge | Found Prototype Flight Unit 15086 | -2/Protoforge | Identified Cep. Fieldthrust Drive 15096 | -2/Protoforge | Spotted V847-z 15100 | -2/Protoforge | Destroyed V847-z 15311 | -2/Protoforge | Found Exp. System Purifier 15315 | -2/Protoforge | Destroyed 8 combat bots 15322 | -2/Protoforge | Spotted EXE-6 15322 | -2/Protoforge | Spotted EXE-6 15385 | -2/Protoforge | Build established: Scavenger-Scout 15531 | -2/Protoforge | UFD initiated attack on Protoforge 15531 | -2/Protoforge | Loaded intel: 3 recycling unit locations 15567 | -2/Protoforge | Optimus greeted in Protoforge 15606 | -2/Protoforge | Spotted SKR-2 15606 | -2/Protoforge | Spotted SKR-2 15606 | -2/Protoforge | Spotted SKR-2 15617 | -2/Protoforge | Destroyed SKR-2 15623 | -2/Protoforge | Destroyed SKR-2 15653 | -2/Protoforge | Lost 3 allies 15657 | -2/Protoforge | Spotted EXE-6 15658 | -2/Protoforge | Spotted EXE-6 15674 | -2/Protoforge | Destroyed EXE-6 15677 | -2/Protoforge | Destroyed EXE-6 15691 | -2/Protoforge | Spotted AP7-3 15712 | -2/Protoforge | Spotted AP7-3 15735 | -2/Protoforge | Destroyed 7 combat bots 15740 | -2/Protoforge | Destroyed AP7-3 15760 | -2/Protoforge | Spotted Striker 15762 | -2/Protoforge | Spotted Striker 15774 | -2/Protoforge | Destroyed Striker 15777 | -2/Protoforge | Destroyed Striker 15838 | -2/Protoforge | Found Exp. System Purifier 15843 | -2/Protoforge | Destroyed 11 combat bots 15848 | -2/Protoforge | Spotted Striker 15861 | -2/Protoforge | Spotted Executioner 15862 | -2/Protoforge | Spotted Striker 15868 | -2/Protoforge | Destroyed Striker 15880 | -2/Protoforge | Spotted Executioner 15881 | -2/Protoforge | Spotted Striker 15887 | -2/Protoforge | Destroyed Executioner 15893 | -2/Protoforge | Destroyed Striker 15897 | -2/Protoforge | Lost 6 allies 15914 | -2/Protoforge | Destroyed 16 combat bots 15925 | -2/Protoforge | Spotted Hotshot 15925 | -2/Protoforge | Destroyed Hotshot 15930 | -2/Protoforge | Spotted Hotshot 15935 | -2/Protoforge | Destroyed B-90 Cyclops 15935 | -2/Protoforge | Destroyed Hotshot 15990 | -2/Protoforge | Spotted Striker 15990 | -2/Protoforge | Spotted Executioner 16023 | -2/Protoforge | Spotted Executioner 16026 | -2/Protoforge | Spotted Executioner 16026 | -2/Protoforge | Destroyed Executioner 16026 | -2/Protoforge | Reached level 35 16036 | -2/Protoforge | Spotted Striker 16036 | -2/Protoforge | Spotted Striker 16036 | -2/Protoforge | Destroyed Executioner 16036 | -2/Protoforge | Destroyed Striker 16038 | -2/Protoforge | Spotted Striker 16039 | -2/Protoforge | Spotted Executioner 16052 | -2/Protoforge | Destroyed Executioner 16077 | -2/Protoforge | Destroyed 17 combat bots 16080 | -2/Protoforge | Lost 4 allies 16087 | -2/Protoforge | Spotted Decapitator 16087 | -2/Protoforge | Spotted Decapitator 16089 | -2/Protoforge | Destroyed Decapitator 16091 | -2/Protoforge | Destroyed Decapitator 16100 | -2/Protoforge | Spotted Striker 16101 | -2/Protoforge | Spotted Striker 16108 | -2/Protoforge | Destroyed Striker 16110 | -2/Protoforge | Destroyed Striker 16115 | -2/Protoforge | Spotted Executioner 16134 | -2/Protoforge | Spotted Executioner 16135 | -2/Protoforge | Destroyed Executioner 16138 | -2/Protoforge | Destroyed Executioner 16139 | -2/Protoforge | UFD reported confirmed Drillbomb installation 16142 | -2/Protoforge | Spotted Executioner 16147 | -2/Protoforge | Spotted Striker 16150 | -2/Protoforge | Destroyed Executioner 16150 | -2/Protoforge | Destroyed Striker 16184 | -2/Protoforge | Destroyed 20 combat bots 16211 | -2/Protoforge | Spotted Executioner 16212 | -2/Protoforge | Spotted Striker 16231 | -2/Protoforge | Destroyed Striker 16244 | -2/Protoforge | Destroyed Executioner 16277 | -2/Protoforge | Destroyed Hotshot 16297 | -2/Protoforge | Lost 6 allies 16349 | -2/Protoforge | Build established: Scavenger-Executioner 16366 | -2/Protoforge | Spotted Striker 16367 | -2/Protoforge | Spotted Striker 16367 | -2/Protoforge | Destroyed Striker 16367 | -2/Protoforge | Destroyed Striker 16367 | -2/Protoforge | Spotted Striker 16368 | -2/Protoforge | Spotted Striker 16370 | -2/Protoforge | Spotted Executioner 16370 | -2/Protoforge | Destroyed Executioner 16401 | -2/Protoforge | Spotted Striker 16402 | -2/Protoforge | Destroyed Striker 16441 | -2/Protoforge | Spotted Executioner 16442 | -2/Protoforge | Destroyed Executioner 16466 | -2/Protoforge | Spotted Executioner 16468 | -2/Protoforge | Spotted Immortal 16471 | -2/Protoforge | Destroyed Executioner 16472 | -2/Protoforge | UFD reported confirmed Drillbomb installation 16476 | -2/Protoforge | Spotted Immortal 16492 | -2/Protoforge | Destroyed 30 combat bots 16498 | -2/Protoforge | Destroyed Immortal 16503 | -2/Protoforge | Destroyed Immortal 16539 | -2/Protoforge | Spotted Executioner 16541 | -2/Protoforge | Destroyed Executioner 16553 | -2/Protoforge | Spotted Executioner 16569 | -2/Protoforge | Destroyed Executioner 16576 | -2/Protoforge | Spotted Immortal 16580 | -2/Protoforge | Spotted Immortal 16590 | -2/Protoforge | Destroyed 7 combat bots 16616 | -2/Protoforge | Spotted SKR-2 16619 | -2/Protoforge | Destroyed Immortal 16647 | -2/Protoforge | Destroyed Immortal 16651 | -2/Protoforge | Spotted Striker 16651 | -2/Protoforge | Spotted Striker 16661 | -2/Protoforge | Destroyed Striker 16684 | -2/Protoforge | Spotted Striker 16688 | -2/Protoforge | Destroyed Striker 16689 | -2/Protoforge | Spotted Executioner 16691 | -2/Protoforge | Destroyed SKR-2 16696 | -2/Protoforge | Destroyed Executioner 16717 | -2/Protoforge | Destroyed 9 combat bots 16735 | -2/Protoforge | Spotted Striker 16735 | -2/Protoforge | Spotted Executioner 16735 | -2/Protoforge | Spotted Executioner 16735 | -2/Protoforge | Spotted Striker 16735 | -2/Protoforge | Destroyed Executioner 16738 | -2/Protoforge | Destroyed Executioner 16747 | -2/Protoforge | Spotted Executioner 16748 | -2/Protoforge | Spotted Executioner 16749 | -2/Protoforge | Destroyed Executioner 16761 | -2/Protoforge | Lost 5 allies 16772 | -2/Protoforge | UFD reported confirmed Drillbomb installation 16781 | -2/Protoforge | Spotted Striker 16782 | -2/Protoforge | Destroyed Striker 16784 | -2/Protoforge | Spotted Executioner 16828 | -2/Protoforge | Spotted Striker 16833 | -2/Protoforge | Spotted Striker 16866 | -2/Protoforge | Spotted Executioner 16867 | -2/Protoforge | Spotted Striker 16870 | -2/Protoforge | Destroyed Executioner 16874 | -2/Protoforge | Spotted Executioner 16887 | -2/Protoforge | Destroyed Striker 16898 | -2/Protoforge | Core integrity fell below 20% 16914 | -2/Protoforge | Destroyed 13 combat bots 16943 | -2/Protoforge | Lost 7 allies 16959 | -2/Protoforge | Spotted Executioner 16963 | -2/Protoforge | Destroyed Executioner 16985 | -2/Protoforge | Destroyed Hotshot 16985 | -2/Protoforge | Spotted Hotshot 16988 | -2/Protoforge | Destroyed Hotshot 16989 | -2/Protoforge | Spotted Hotshot 16990 | -2/Protoforge | Spotted Hotshot 16991 | -2/Protoforge | Destroyed Hotshot 16997 | -2/Protoforge | Destroyed Hotshot 16999 | -2/Protoforge | Fabricated M-36 Artificer? 17010 | -2/Protoforge | Fabricated G-73 Enforcer? 17010 | -2/Protoforge | Spotted Striker 17015 | -2/Protoforge | Spotted Striker 17017 | -2/Protoforge | Destroyed Striker 17029 | -2/Protoforge | Destroyed Striker 17057 | -2/Protoforge | Spotted Executioner 17058 | -2/Protoforge | Destroyed Executioner 17072 | -2/Protoforge | Build established: Scavenger-Scout 17086 | -2/Protoforge | Spotted Executioner 17096 | -2/Protoforge | Spotted Hotshot 17097 | -2/Protoforge | Spotted Hotshot 17097 | -2/Protoforge | Spotted Hotshot 17097 | -2/Protoforge | Destroyed Hotshot 17118 | -2/Protoforge | Destroyed 22 combat bots 17126 | -2/Protoforge | Spotted Striker 17127 | -2/Protoforge | Spotted Executioner 17131 | -2/Protoforge | Destroyed Striker 17143 | -2/Protoforge | Spotted Striker 17156 | -2/Protoforge | Spotted Striker 17163 | -2/Protoforge | Destroyed Striker 17172 | -2/Protoforge | Destroyed Striker 17193 | -2/Protoforge | Lost 13 allies 17241 | -2/Protoforge | Spotted Decapitator 17241 | -2/Protoforge | Spotted Decapitator 17241 | -2/Protoforge | Destroyed Decapitator 17244 | -2/Protoforge | Destroyed Decapitator 17277 | -2/Protoforge | Found Prototype Processor 17277 | -2/Protoforge | Identified Exp. Core Analyzer 17338 | -2/Protoforge | Spotted Executioner 17352 | -2/Protoforge | Spotted Striker 17353 | -2/Protoforge | Destroyed Striker 17353 | -2/Protoforge | Spotted Striker 17356 | -2/Protoforge | Spotted Striker 17495 | -2/Protoforge | Found Prototype Processor 17495 | -2/Protoforge | Identified Cep. Projectile Intercept Suite 17499 | -2/Protoforge | Found Prototype Device 17499 | -2/Protoforge | Identified Exp. EM Disruption Field 17539 | -2/Protoforge | Spotted Executioner 17540 | -2/Protoforge | Spotted Executioner 17540 | -2/Protoforge | Destroyed Executioner 17540 | -2/Protoforge | Reached level 36 17540 | -2/Protoforge | Destroyed Executioner 17612 | -2/Protoforge | UFD reported confirmed Drillbomb installation 17616 | -2/Protoforge | Destroyed Executioner 17617 | -2/Protoforge | Spotted Striker 17641 | -2/Protoforge | Destroyed 13 combat bots 17644 | -2/Protoforge | Spotted Striker 17645 | -2/Protoforge | Spotted Striker 17647 | -2/Protoforge | Lost 4 allies 17652 | -2/Protoforge | Destroyed Striker 17652 | -2/Protoforge | Destroyed Striker 17694 | -2/Protoforge | Spotted Striker 17695 | -2/Protoforge | Destroyed Striker 17738 | -2/Protoforge | Spotted Executioner 17741 | -2/Protoforge | Spotted Executioner 17741 | -2/Protoforge | Spotted Executioner 17741 | -2/Protoforge | Spotted Executioner 17744 | -2/Protoforge | Destroyed Executioner 17777 | -2/Protoforge | Spotted Striker 17781 | -2/Protoforge | Spotted Executioner 17782 | -2/Protoforge | Destroyed Executioner 17797 | -2/Protoforge | Lost 12 allies 17803 | -2/Protoforge | Destroyed 10 combat bots 17816 | -2/Protoforge | Spotted Hotshot 17816 | -2/Protoforge | Destroyed Hotshot 17816 | -2/Protoforge | Destroyed Hotshot 17816 | -2/Protoforge | Destroyed Hotshot 17816 | -2/Protoforge | Destroyed Hotshot 17858 | -2/Protoforge | Spotted Executioner 17860 | -2/Protoforge | Destroyed 13 combat bots 17860 | -2/Protoforge | Destroyed Executioner 17861 | -2/Protoforge | Spotted Executioner 17864 | -2/Protoforge | Spotted Striker 17865 | -2/Protoforge | Destroyed Striker 17866 | -2/Protoforge | Spotted Executioner 17868 | -2/Protoforge | Destroyed Executioner 17879 | -2/Protoforge | Destroyed Executioner 17891 | -2/Protoforge | Spotted Striker 17891 | -2/Protoforge | Spotted Striker 17893 | -2/Protoforge | Destroyed Striker 17895 | -2/Protoforge | Destroyed Striker 17920 | -2/Protoforge | Spotted Executioner 17936 | -2/Protoforge | Destroyed Executioner 17939 | -2/Protoforge | Destroyed Executioner 17950 | -2/Protoforge | Destroyed Executioner 17954 | -2/Protoforge | Spotted Executioner 17954 | -2/Protoforge | Destroyed Executioner 17957 | -2/Protoforge | Destroyed Executioner 17961 | -2/Protoforge | Destroyed Striker 17997 | -2/Protoforge | Spotted Executioner 18001 | -2/Protoforge | Destroyed 43 combat bots 18006 | -2/Protoforge | Destroyed Executioner 18009 | -2/Protoforge | Spotted Executioner 18027 | -2/Protoforge | Destroyed Executioner 18033 | -2/Protoforge | Destroyed Executioner 18040 | -2/Protoforge | Spotted Executioner 18040 | -2/Protoforge | Destroyed Executioner 18045 | -2/Protoforge | UFD reported confirmed Drillbomb installation 18061 | -2/Protoforge | Destroyed 12 combat bots 18082 | -2/Protoforge | Spotted Striker 18082 | -2/Protoforge | Destroyed Striker 18084 | -2/Protoforge | UFD reported confirmed Drillbomb installation 18086 | -2/Protoforge | Destroyed Striker 18127 | -2/Protoforge | Spotted Striker 18128 | -2/Protoforge | Spotted Striker 18133 | -2/Protoforge | Destroyed Striker 18139 | -2/Protoforge | Destroyed Striker 18230 | -2/Protoforge | Spotted Striker 18236 | -2/Protoforge | Destroyed Striker 18244 | -2/Protoforge | Spotted Executioner 18257 | -2/Protoforge | Destroyed 11 combat bots 18275 | -2/Protoforge | Spotted Executioner 18275 | -2/Protoforge | Destroyed Executioner 18275 | -2/Protoforge | Destroyed Executioner 18289 | -2/Protoforge | Destroyed Executioner 18293 | -2/Protoforge | Spotted Striker 18293 | -2/Protoforge | Spotted Executioner 18297 | -2/Protoforge | Destroyed Executioner 18300 | -2/Protoforge | Destroyed Striker 18300 | -2/Protoforge | Destroyed Executioner 18306 | -2/Protoforge | Spotted Striker 18306 | -2/Protoforge | Spotted Executioner 18325 | -2/Protoforge | Destroyed Striker 18368 | -2/Protoforge | Destroyed 23 combat bots 18389 | -2/Protoforge | Spotted Striker 18390 | -2/Protoforge | Spotted Striker 18390 | -2/Protoforge | Spotted Striker 18390 | -2/Protoforge | Destroyed Striker 18393 | -2/Protoforge | Destroyed Striker 18393 | -2/Protoforge | Destroyed Striker 18393 | -2/Protoforge | Destroyed Striker 18422 | -2/Protoforge | Destroyed 13 combat bots 18451 | -2/Protoforge | Spotted Striker 18451 | -2/Protoforge | Spotted Executioner 18458 | -2/Protoforge | Destroyed Executioner 18458 | -2/Protoforge | Destroyed Striker 18497 | -2/Protoforge | Found Cep. XC Strikerail 18500 | -2/Protoforge | Found Cep. XC Strikerail 18504 | -2/Protoforge | Found Cep. XC Strikerail 18528 | -2/Protoforge | UFD reported confirmed Drillbomb installation 18546 | -2/Protoforge | Destroyed Executioner 18553 | -2/Protoforge | UFD reported confirmed Drillbomb installation 18559 | -2/Protoforge | Destroyed Executioner 18584 | -2/Protoforge | Destroyed 11 combat bots 18586 | -2/Protoforge | Spotted Striker 18589 | -2/Protoforge | Spotted Striker 18604 | -2/Protoforge | Destroyed Striker 18613 | -2/Protoforge | Spotted Striker 18616 | -2/Protoforge | Destroyed Executioner 18622 | -2/Protoforge | Spotted Executioner 18637 | -2/Protoforge | Destroyed 7 combat bots 18647 | -2/Protoforge | Lost 3 allies 18670 | -2/Protoforge | Destroyed Executioner 18686 | -2/Protoforge | Spotted Striker 18686 | -2/Protoforge | Spotted Striker 18687 | -2/Protoforge | Destroyed Striker 18688 | -2/Protoforge | Spotted Striker 18690 | -2/Protoforge | Spotted Striker 18690 | -2/Protoforge | Destroyed Striker 18694 | -2/Protoforge | Destroyed Striker 18694 | -2/Protoforge | Destroyed Striker 18701 | -2/Protoforge | Lost 3 allies 18729 | -2/Protoforge | Destroyed 15 combat bots 18747 | -2/Protoforge | Spotted Striker 18747 | -2/Protoforge | Destroyed Striker 18755 | -2/Protoforge | Spotted Executioner 18755 | -2/Protoforge | Destroyed Executioner 18782 | -2/Protoforge | Lost 5 allies 18798 | -2/Protoforge | Spotted Striker 18798 | -2/Protoforge | Destroyed Striker 18799 | -2/Protoforge | Spotted Striker 18800 | -2/Protoforge | Destroyed Striker 18812 | -2/Protoforge | Spotted Striker 18815 | -2/Protoforge | Destroyed Striker 18818 | -2/Protoforge | Spotted Executioner 18818 | -2/Protoforge | Destroyed Executioner 18818 | -2/Protoforge | Destroyed Striker 18822 | -2/Protoforge | Spotted Striker 18822 | -2/Protoforge | Destroyed Striker 18854 | -2/Protoforge | Destroyed 21 combat bots 18876 | -2/Protoforge | UFD reported confirmed Drillbomb installation 18881 | -2/Protoforge | Spotted Striker 18881 | -2/Protoforge | Spotted Executioner 18881 | -2/Protoforge | Spotted Executioner 18881 | -2/Protoforge | Spotted Striker 18881 | -2/Protoforge | Destroyed Executioner 18884 | -2/Protoforge | Destroyed Striker 18888 | -2/Protoforge | Destroyed Executioner 18894 | -2/Protoforge | Destroyed Striker 18906 | -2/Protoforge | Spotted Striker 18906 | -2/Protoforge | Spotted Striker 18909 | -2/Protoforge | Destroyed Striker 18917 | -2/Protoforge | Destroyed Striker 18938 | -2/Protoforge | Destroyed 18 combat bots 18981 | -2/Protoforge | Spotted Executioner 18981 | -2/Protoforge | Spotted Executioner 18981 | -2/Protoforge | Spotted Executioner 18981 | -2/Protoforge | Spotted Executioner 18988 | -2/Protoforge | Warped through subspace 18999 | -2/Protoforge | Attacked by UFD forces 18999 | -2/Protoforge | Destroyed by ND-MMZ(E) with Overtuned Coil Gun Last Messages --------------- 18987_ Dropped Cep. Tiamat Rocket Array. 18987_ Penetrated by Slug. 18988_ The unstable cave ceiling collapses. 18988_ Warped through subspace. 18994_ Acquired 1 matter. 18994_ Lugger 523 collects UFD Drillbomb. 18994_ Acquired 70 matter. 18994_ Acquired 32 matter. 18995_ Acquired 7 matter. 18995_ Acquired 43 matter. 18995_ Acquired 121 matter. 18996_ Slug penetrates HG-YFY(E). 18996_ Slug penetrates Terminal. 18996_ Slug penetrates HG-YFY(E). 18998_ HG-YFY(E) destroyed. 18998_ Slug penetrates Terminal. 18998_ Slug penetrates Wall. 18999_ 0bP_NET: Cargohacker betrays us! Get the scumbolt! 18999_ Critical hit (Burn: +50). 18999_ Penetrated by Slug. Map ----- +----------------------------------------------------+ | ####### # "" % "##### "" "# ""## | | ### # " *! % ##p### # %""## | | ######"# " %=%= ![###E######"## % ## | | "% # ""!%!! "#?####### ## %% ## | | # ""[ # #"%####"####?????### #"% % ### ## | | # !"!" #### #### ####?????#####"" % ##/" # | | %+%%!R"*####=#### #????????## ! # *% ## # | | " # "["%" =*" ## ########### " ### # | | %[%* !###!#### ########### " % | | # ########## ####### " ### | | # ############### # ## | | # ##### """" # " " # ## | | ## # #### """" # " " ;# # # # | | # """" # "% "" #### E | | "" " # "" #% % m E s | | " j s s % & | | # j | | # h | | % # % ] % # ## # | | %% ## n ## | | = ## # # % # # n # ## # | | % p !% % j s E% [ # # # | | s%[ [ % % s j!%! ## | | !!%!*[! % %%A % ! ## % # | | *=%! % % %% % ## # % % %% # | | [=[ #% # % @ ###!% # | | % n % # # | | % % ## s% # # % # # # ## | | # !n%# % % | | [!% % % %n " | | ! % A %% % % | | %% s %% | | " % % % %# # # # # ### # | | # ! % *% # %% # # | | ## %% % # ##;"" """ ## ## | | ##"% % # ## # #"" """ " ## # | | ### [ " ;####; " " ##"T """" ""### ## | | ##" ! %" "#;##??## """ ####"" """" S"##?### | | ### != " #####??## """ ####"" """##??## | | ### #####??????## """ ###### """##??## | | ### ##???????## """ ###### ###### | | ### ##???????## ##??######%########## | | ### ##???????#####+######??############ | | ### ^"####???????##### ############# ##### [ | | ###ss "####??????????## ##???############### ! | | jj "#######???????## ##???## # | | ####+""########???????## ##???## # # | | # ##???????## ####### #sh # | | # ######### # ####### "" # # | | # " # " + "" # E | +----------------------------------------------------+ Best States ------------- Heat Dissipation 153 Energy Generation 96 Energy Capacity 1790 Matter Stores 1100 Matter Capacity 1100 Sight Range 24 Robot Scan Range 32 Terrain Scan Density 10 ECM Strength 2 Jamming Range 16 Cloak Strength 6 Power Amplification 20 Additional Mass Support 30 Armor Coverage 375 Resistance: KI 5 Resistance: TH 5 Resistance: EX 10 Resistance: EM 25 Power Shielding 33 Weapon Shielding 33 Weapon Cycling 25 Melee Speed Boost 50 Evasion (%) 68 Targeting Accuracy 30 Target Analysis 12 Core Analysis 8 Armor Integrity Analysis 30 Salvage Targeting 4 Offensive Hacking 24 Defensive Hacking 5 Item Schematics ----------------- Enh. Nova Cannon | -2/Testing | Hacked Cld. Impulse Thruster | -2/Testing | Archive Coolant Network | -2/Testing | Archive Exp. Signal Interpreter | -2/Testing | Archive Helical Railgun | -2/Testing | Archive Tactical Quantum Warhead | -2/Protoforge | Archive Enh. Biometal Leg | -2/Protoforge | Archive Exp. Thermal Defense Suite | -2/Protoforge | Archive Exp. Shock Absorption System | -2/Protoforge | Archive Centrium Heavy Treads | -2/Protoforge | Archive Adv. Dynamic Insulation System | -2/Protoforge | Archive Enh. Coil Gun | -2/Protoforge | Archive Imp. Energy Well | -2/Protoforge | Archive Spectral Analyzer | -2/Protoforge | Archive Robot Schematics ------------------ G-73 Enforcer | -2/Testing | Archive S-43 Plague | -2/Protoforge | Archive Fabricated ------------ Adv. Weapon Cycler | x2 | -5/Factory Dispersion Rifle | x2 | -4/Factory M-36 Artificer | x1 | -2/Protoforge | Preloaded G-73 Enforcer | x3 | -2/Protoforge Repaired ---------- Lyr. Light Armor Plating | 17% | -4/Factory Adv. Sensor Array | 83% | -2/Research | Broken Alien Tech Used ----------------- Core Reset Matrix Concept Nanofilaments [Conductive] High-powered Transdimensional Reconstructor Achievements -------------- None Challenges ------------ None RPGLIKE | -11 -10 -9 -8 -8 -8 -8 -6 -6 -6 -6 -5 -5 -5 -5 -5 -5 -4 -4 -4 -3 -3 -2 -2 -2 --------- Run | Yrd Mat Mat Mat Sto Rec Scr Fac Low Low Dat Pro Fac Ext Cet Arc Hub Fac Upp Upp Res Qua Res Tes Frg Levels Raised 35 | . . 2 2 3 1 1 7 . 1 . 2 2 1 1 . . 2 1 . 1 1 1 2 4 XP Earned 56708 | 3000 785 3155 3450 4075 1819 918 10065 1177 1042 316 2286 3122 1972 599 230 851 2831 357 430 2025 1309 2066 2149 6679 XP Spent 55455 | 2920 . 2340 2950 3310 400 4150 9430 . . . . 6325 1500 1600 . 1200 3820 . . 2900 . . 2250 10360 Upgrades 102 | 7 . 9 7 6 2 4 19 . . . . 17 2 1 . 4 4 . . 1 . . 2 17 Power Slot 2 | 1 . . . . . . . . . . . 1 . . . . . . . . . . . . Propulsion Slot 5 | 1 . 1 . 1 . . 1 . . . . . . . . . 1 . . . . . . . Utility Slot 9 | 1 . 1 1 1 . 1 2 . . . . 1 . . . . . . . 1 . . . . Weapon Slot 5 | 2 . . . . . 1 . . . . . . . . . . 1 . . . . . . 1 Core Integrity 19 | . . 2 . . . . 4 . . . . 5 . . . . . . . . . . . 8 Heat Dissipation 17 | 2 . 3 . 3 . . 2 . . . . 1 . . . 4 2 . . . . . . . Energy Generation 2 | . . . . 1 . . 1 . . . . . . . . . . . . . . . . . Energy Storage 3 | . . . . . . . 3 . . . . . . . . . . . . . . . . . Matter Storage 1 | . . . . . . . 1 . . . . . . . . . . . . . . . . . Mass Support 5 | . . 1 . . . 1 1 . . . . . . 1 . . . . . . . . . 1 Inventory Capacity 6 | . . 1 1 . . 1 . . . . . . . . . . . . . . . . 2 1 Sight Range 2 | . . . . . . . 2 . . . . . . . . . . . . . . . . . Sensor Range 6 | . . . . . . . 2 . . . . 4 . . . . . . . . . . . . Ranged Accuracy 6 | . . . 2 . . . . . . . . 1 2 . . . . . . . . . . 1 Hack Attack % 2 | . . . . . 1 . . . . . . 1 . . . . . . . . . . . . Hack Defense % 1 | . . . . . 1 . . . . . . . . . . . . . . . . . . . KI Resistance % 1 | . . . 1 . . . . . . . . . . . . . . . . . . . . . TH Resistance % 1 | . . . 1 . . . . . . . . . . . . . . . . . . . . . EX Resistance % 2 | . . . 1 . . . . . . . . 1 . . . . . . . . . . . . KI Damage % 2 | . . . . . . . . . . . . 1 . . . . . . . . . . . 1 TH Damage % 2 | . . . . . . . . . . . . 1 . . . . . . . . . . . 1 EX Damage % 3 | . . . . . . . . . . . . . . . . . . . . . . . . 3 Protomatter Created 15734 | . 49 121 251 299 133 428 474 279 254 . 403 664 867 106 . . 825 302 346 416 314 234 419 8550 Integrity Restored 29665 | . 100 59 707 505 153 401 1419 184 371 . 716 848 1794 422 149 189 1697 387 333 1169 544 473 650 16395 Core 24345 | . 74 49 602 357 17 293 1031 135 300 . 471 706 1331 290 118 189 1294 281 295 838 450 467 345 14412 Parts 5320 | . 26 10 105 148 136 108 388 49 71 . 245 142 463 132 31 . 403 106 38 331 94 6 305 1983 Protomatter Decayed 18730 | . . 100 . 76 78 8196 229 214 91 . 164 305 137 48 51 234 206 76 165 1179 62 75 218 6826 Game ------ Seed QuantumAblativeInverter Manual? 0 Play Time 06:46:54 Cumulative 709.2 hours Start 2025.07.10 @ 00:57:24 End 2025.07.10 @ 19:27:26 Sessions 25 Manual Loads 0 Difficulty Rogue Special Mode Winter2019/RPGLIKE Game No. 54 Rogue 42 Adventurer 9 Explorer 3 Win Type - Total 6 Types 4/0/0/2/0/0/0/0/0/0 Lore% 54 Gallery% 55 Achievement% 63 Wizard Run 0 Options --------- Layout 0 ASCII 0 Keyboard 0 Movement Mouse Keybinds 0 Fullscreen 2 Font 18/SmallcapsGlow Map View 76x50 Zoom Use 0% Tactical HUD 1 Map Filters NONE Filters NONE Steam 1 RUN: 706c7fe9-7eee-4363-83ee-62d5e263fbec